DATE,MERCHANT,FIN.ACCOUNTING CODE 03 DESCRIPTION,AMOUNT,EXPENSE DESCRIPTION
02/08/2016,GRO HM PASSPORT OFFICE,FOSTERING PLACEMENTS,-9.25,"1 X BIRTH CERTIFICATE, REFUNDED - SW"
03/08/2016,AMAZON UK MARKETPLACE,CLEAN STREETS,13.98,2 X CAMERA CASES
03/08/2016,AMAZON UK RETAIL AMAZO,CLEAN STREETS,147.33,2 X CAMERAS
03/08/2016,ARGOS RETAIL GROUP,ENVIRONMENT ADMINISTRATION,876,3 X MOBILE DEVICES (CLEANSING)
03/08/2016,WWW.PASSPORTS-OFFICE.C,LEAVING CARE LAC OTHER CARE,112,COST OF PASSPORT RENEWAL FOR TP - EXPRESS SERVICE
03/08/2016,AMAZON UK MARKETPLACE,AIMING HIGH FOR DISABLED CHILDREN,143.91,"DEP NO 2269. AMAZON ORDER.   BELKIN LAPTOP BACK PACKS , KALEIDOSCOPE, STEPS."
03/08/2016,AMAZON UK MARKETPLACE,AIMING HIGH FOR DISABLED CHILDREN,22.05,"DEP NO 2269. AMAZON ORDER.  PADLOCKS FOR THE BELKIN LAPTOP BACK PACKS , KALEIDOSCOPE, STEPS."
03/08/2016,AMAZON UK MARKETPLACE,FAMILY SUPPORT & INTERVENTION SUPP SERV,95.94,"DEP NO 2269. AMAZON ORDER. BELKIN LAPTOP BACK PACKS, KALEIDOSCOPE, STEPS."
03/08/2016,WWW.EVERYTHINGOFFICE.C,CEL: ESOL,86.27,DRYWIPE BOARDS
03/08/2016,SAINSBURYS 0693,YS ADVENTURE PLAYGROUNDS,12,DUMPS APG
03/08/2016,CURRY SUPERSTORE,YS ADVENTURE PLAYGROUNDS,64.97,DUMPS APG
03/08/2016,F R JONES & SON,YS ADVENTURE PLAYGROUNDS,67.46,DUMPS APG
03/08/2016,WWW.ERS-ONLINE.CO.UK,LS: LEISURE MGT CLIENT SERVICES,82.58,ERS SCANNERS FOR FREE SWIM (FROM BUDGET)
03/08/2016,WP-GATEHOUSE MEDIA,CEL: ESOL,81.84,ESOL LITERACY RESOURCE PACK
03/08/2016,ARGOS LTD,ANTI FRAUD AND CORRUPTION TEAM,9.99,EXTENSION CABLE NEEDED FOR TRAINING (EXISTING CABLE HAD DISAPPEARED)
03/08/2016,PAYPAL  FACEBOOK,COMMUNICATIONS & MARKETING,20,FACEBOOK ADVERTISING COSTS
03/08/2016,DEAN TRANSPORT TESTING,FLEET & VEHICLE MAINT:FLEET,"1,992.00",FLEET VEHICLE MOT TESTING.
03/08/2016,DVSA,FLEET & VEHICLE MAINT:FLEET,13,FLEET VEHICLE ROAD FUND LICENCE
03/08/2016,AMAZON EU,HEAD OF ASSET STRATEGY AND DEVELOPMENT,112.98,GBC FUSION 3100L A3 LAMINATOR.
03/08/2016,WWW.SEWESSENTIAL.CO.UK,CEL: TEXTILE & FLORAL DESIGN,64.5,HEM MAKER
03/08/2016,PEARSON ED LTD,EP EDUC PSYCHOLOGISTS,414.52,KEY MATHS 3 ORDERED STEPS (SPEC LEARNING DIFFS TM).  DEP APPROVAL NO 2294
03/08/2016,SELCO TRADE CENTRE,HANDYPERSON SCHEME,4.86,MATERIALS
03/08/2016,WICKES   281,HANDYPERSON SCHEME,5.28,MATERIALS
03/08/2016,OYSTER BUS AUTOTOP,AWLD SPECIALIST SW TEAM,20,OYSTER BUS AUTOTOP
03/08/2016,OYSTER AUTOTOPUP,LEAVING CARE SUPPORT SERVICES,20,OYSTER CARD
03/08/2016,LONDON & SOUTH EAS,PLANNING DEVELOPMENT CONTROL,50,OYSTER CARD TOP UP - FORGOT TO PRESS BUTTON FOR RECEIPT.
03/08/2016,LONDON & SOUTH EAS,PLANNING DEVELOPMENT CONTROL,50,OYSTER CARD TOP UP FOR FOUND 1
03/08/2016,OYSTER BUS AUTOTOP,HOSTELS: GENERAL,20,OYSTER CARD TOP UP 
03/08/2016,OYSTER BUS AUTOTOP,LEAVING CARE SUPPORT SERVICES,20,OYSTER TOP UP
03/08/2016,OYSTER AUTOTOPUP,LEAVING CARE SUPPORT SERVICES,20,OYSTER TOP UP
03/08/2016,OYSTER BUS AUTOTOP,LEAVING CARE SUPPORT SERVICES,20,POOL OYSTER
03/08/2016,SCREWFIX DIRECT,HEAD OF ASSET STRATEGY AND DEVELOPMENT,19.99,PPE:  HIGH VIZ JACKET X LARGE.
03/08/2016,DVLA DRIVER ONLINE,LEAVING CARE LAC OTHER CARE,34,PROVISIONAL LICENCE FOR CD
03/08/2016,DVLA DRIVER ONLINE,LEAVING CARE LAC OTHER CARE,34,PROVISIONAL LICENSE FOR SM
03/08/2016,TRAINLINE,YOUTH OFFENDING SERVICE,221.85,REPLACEMENT TICKET FOR PARENT WHO CLAIMED REFUND
03/08/2016,OYSTER BUS AUTOTOP,ADULT SERVICES BUSINESS SUPPORT,20,STAFF TRAVEL
03/08/2016,OYSTER BUS AUTOTOP,ADULT SERVICES BUSINESS SUPPORT,20,STAFF TRAVEL
03/08/2016,OYSTER BUS AUTOTOP,ADULT SERVICES BUSINESS SUPPORT,20,STAFF TRAVEL
03/08/2016,OYSTER BUS AUTOTOP,ADULT SERVICES BUSINESS SUPPORT,20,STAFF TRAVEL
03/08/2016,ARGOS RETAIL GROUP,LEAVING CARE LAC OTHER CARE,254.98,SUHG AR
03/08/2016,AO RETAIL LIMITED,LEAVING CARE LAC OTHER CARE,941.98,SUHG FOR EB
03/08/2016,WWW.TONERGIANT.CO.UK,LEWISHAM LINKLINE,118.73,TONER CARTRIDGE
03/08/2016,LONDON & SOUTH EAS,ANTI FRAUD AND CORRUPTION TEAM,10,TOP UP OYSTER CARD
03/08/2016,LONDON & SOUTH EAS,ANTI FRAUD AND CORRUPTION TEAM,20,TOP UP OYSTER CARD FOR GENERAL TRAVEL
03/08/2016,OYSTER AUTOTOPUP,PRACTICE SUPPORT OFFICE,40,TOP-UP OYSTER - HOUSING LITIGATION TEAM
04/08/2016,WWW.SAFETYFIRSTAID.CO.,LEWISHAM LINKLINE,49.68,ANTISEPTIC HAND RUB
04/08/2016,PAYPAL  TEACHSPORTM,FSI - KINGFISHER TEAM (AREA 2) - SECTIO,50,"DAY ACTIVITY WHILE PARENTS ARE IN COURT, - SW"
04/08/2016,OYSTER BUS AUTOTOP,FSI - LAUNCELOT TEAM (AREA 3),20,TM TRAVEL TO COURT.  KINGFISHER TM
04/08/2016,ORANGE (A/PM/02),REABLEMENT TEAM,"1,046.89",ENABLEMENT MOBILES
04/08/2016,AKW MEDI-CARE LIMI,AWD EQUIP & ADAPT (PRE JUNE 02),315.22,EQUIPMENT FOR SERVICE USERS FOR ADAPTS TEAM
04/08/2016,THE POPPY APPEAL,MEMBERS' ALLOWANCES,543,"FOR THE SUPPLY OF POPPY WREATHS FOR THE MAYOR, CHAIR, AND VARIOUS OTHER COUNCILLORS FOR REMEMBRANCE SUNDAY EVENT"
04/08/2016,THE HOME OFFICE,LEAVING CARE LAC OTHER CARE,72,CONVENTION TRAVEL DOCUMENT FROM HOME OFFICE
04/08/2016,LEWISHAM COUNCIL INT,FOSTERING PLACEMENTS,20.38,BIRTH CERTIFICATE.  SW LAC.
04/08/2016,LAMBETH INTERNET PAYM,FOSTERING PLACEMENTS,10.17,SW   LAC. BIRTH CERT.
04/08/2016,GWR WEBSALES ECOM,ADOPTION TEAM 1,49.2,TO HERNE BAY PEAK TICKET
04/08/2016,HM PASSPORT,FOSTERING PLACEMENTS,174,LCS. X2 EXPRESS PASSPORTS.  PAID OVER PHONE - THE PASSPORT OFFICE DO NOT ISSUE RECEIPTS.
04/08/2016,ATLIS DATACOM LTD,ENVIRONMENT ADMINISTRATION,225.6,LINE RENT AND BROADBAND CHARGES
04/08/2016,SELCO TRADE CENTRE,HANDYPERSON SCHEME,14.01,MATERIALS
04/08/2016,OYSTER BUS AUTOTOP,AWLD SPECIALIST SW TEAM,20,OYSTER BUS AUTOTOP
04/08/2016,OYSTER BUS AUTOTOP,AWLD SPECIALIST SW TEAM,20,OYSTER BUS AUTOTOP
04/08/2016,OYSTER BUS AUTOTOP,LEAVING CARE SUPPORT SERVICES,20,OYSTER TOP UP
04/08/2016,OYSTER BUS AUTOTOP,SUPPORT & DEVELOPMENT TEAM 2,20,OYSTER TOP UP
04/08/2016,OYSTER AUTOTOPUP,LEAVING CARE SUPPORT SERVICES,20,OYSTER TOP UP
04/08/2016,AMAZON EU,HEAD OF ASSET STRATEGY AND DEVELOPMENT,84.92,PPE:   HIGH VIZ PARKA JACKET & ADULTS SAFETY BOOTS.
04/08/2016,AMAZON UK MARKETPLACE,HEAD OF ASSET STRATEGY AND DEVELOPMENT,76.55,"PPE: 2 XSAFETY BOOTS, 6 PAIRS SOCKS & 2X HIGH VIZ JACKETS"
04/08/2016,AMAZON UK MARKETPLACE,HEAD OF ASSET STRATEGY AND DEVELOPMENT,67.99,PPE: GRIFITI SLIM WRIST PAD & KENSINGTON OPTICAL MOUSE/USB TRACKBALL.
04/08/2016,AMAZON UK MARKETPLACE,HEAD OF ASSET STRATEGY AND DEVELOPMENT,5.6,PPE: VENITEX  HARD HAT. (ONE SIZE)
04/08/2016,RNIB CHARITY,AWLD SPECIALIST SW TEAM,42,RNIB REHAB
04/08/2016,GWR WEBSALES ECOM,LEAVING CARE SUPPORT SERVICES,86.1,RTN FROM THORNTON HEATH TO WREXHAM ON THE 6.8.16
04/08/2016,OYSTER BUS AUTOTOP,ADULT SERVICES BUSINESS SUPPORT,20,STAFF TRAVEL
04/08/2016,OYSTER BUS AUTOTOP,ADULT SERVICES BUSINESS SUPPORT,20,STAFF TRAVEL
04/08/2016,ARGOS RETAIL GROUP,LEAVING CARE LAC OTHER CARE,129.99,SUHG FOR EB
04/08/2016,ARGOS RETAIL GROUP,LEAVING CARE LAC OTHER CARE,200.93,SUHG FOR EB
04/08/2016,OYSTER BUS AUTOTOP,HOME IMPROVEMENT GRANTS & STAYING PUT S,20,TRANSPORT
04/08/2016,LOVE2SHOP.CO.UK,EVENTS-PEOPLES DAY & LIVE SITE,50,VOUCHERS FOR PRIZE DRAW AND ONLINE VISITOR SURVEY FOR THE PEOPLE'S DAY EVENT ON 9TH JULY 2016.
05/08/2016,OYSTER BUS AUTOTOP,LEAVING CARE SUPPORT SERVICES,20,OYSTER TOP UP
05/08/2016,POST OFFICE COUNTER,FOSTERING PLACEMENTS,55.75,"1 X CHILD RENEWAL PASSPORT, CHECK AND SEND - SW"
05/08/2016,LEWISHAM COUNCIL INT,LEAVING CARE LAC OTHER CARE,21.7,2 COPIES OF A BIRTH CERTIFICATE 
05/08/2016,AMAZON UK MARKETPLACE,CEL: BROCKLEY RISE CENTRE,19.2,4 X DURACELL BATTERIES FOR BROCKLEY RISE CENTRE
05/08/2016,AMAZON UK MARKETPLACE,LIBS: LIBRARIES OPERATIONAL DEVELOPMENT,9.76,AF REQ NA VIA ASKEWS
05/08/2016,"AMAZON SVCS EUROPE,SAR",LIBS: LIBRARIES OPERATIONAL DEVELOPMENT,8.47,ANF REQ NA VIA ASKEWS
05/08/2016,AMAZON UK MARKETPLACE,LIBS: LIBRARIES OPERATIONAL DEVELOPMENT,2.81,ANF REQ NA VIA ASKEWS
05/08/2016,AMAZON UK MARKETPLACE,LIBS: LIBRARIES OPERATIONAL DEVELOPMENT,3.25,ANF REQ NA VIA ASKEWS
05/08/2016,INDEPENDENT COMMERCIAL,C.TAX MANAGEMENT,250,BAILIFF BOND - LEWISHAM EA
05/08/2016,WWW.BATTERY-FORCE.CO.U,LEWISHAM LINKLINE,62.67,BATTERIES FOR TELECARE SENSORS
05/08/2016,WWW.ERS-ONLINE.CO.UK,LS: LEISURE MGT CLIENT SERVICES,70.84,BATTERY FOR FREE SWIM SCANNER - GLASS MILL
05/08/2016,GOV.UK/DART-CHARGE,YS BOROUGH WIDE WORK,6,BRIDGE CROSSING FOR YOUNG PEOPLES TRIP
05/08/2016,GRO HM PASSPORT OFFICE,LEAVING CARE LAC OTHER CARE,9.25,COST OF BIRTH CERTIFICATE FOR RS - REFUNDED
05/08/2016,MSFT  <E07002JH8J>,ENVIRONMENT ADMINISTRATION,44.4,DATA CHARGES
05/08/2016,OVO ENERGY,PRIVATE SECTOR LEASING,198.25,ENERGY COSTS
05/08/2016,VALUE PRODUCTS LTD,HEAD OF ASSET STRATEGY AND DEVELOPMENT,77.94,FIRST AID EQUIPMENT: CONSUMABLES PLASTERS X 20 BOXES.
05/08/2016,FABER MUSIC LTD,MEMBERS' ALLOWANCES,667,FOR THE PRESENTATION OF THE BATTLE OF THE SOMME FILM EVENT HOSTED BY THE MAYOR IN THE BROADWAY THEATRE IN SEPTEMBER
05/08/2016,POSTURITE (UK) LTD,RESOURCES AND REGENERATION - CAPITAL,667.37,H&S:  RH LOGIC 400 CHAIR.
05/08/2016,AMAZON UK RETAIL AMAZO,HEAD OF ASSET STRATEGY AND DEVELOPMENT,59.99,H&S: KENSINGTON EXPERT MOUSE OPTICAL WIRED TRACKBALL.
05/08/2016,GWR WEBSALES ECOM,QUALITY ASSURANCE,209,"IRO/SW TRAVEL TO LAC REVIEW - 2 X PADDINGTON TO EXETER RETURN 12.08.2016, - IRO"
05/08/2016,WICKES   083,HANDYPERSON SCHEME,49.98,MATERIALS
05/08/2016,TOOLSTATION LTD,HANDYPERSON SCHEME,10.97,MATERIALS
05/08/2016,CITY ELECTRICAL FA,HANDYPERSON SCHEME,27.96,MATERIALS
05/08/2016,SELCO TRADE CENTRE,HANDYPERSON SCHEME,12.53,MATERIALS
05/08/2016,OYSTER BUS AUTOTOP,FSI - RIVERVIEW TEAM (AREA 4),20,SW TRAVEL TO VISITS AND COURT.  LAUNCELOT TM. 
05/08/2016,OYSTER BUS AUTOTOP,AWLD SPECIALIST SW TEAM,20,OYSTER BUS AUTOTOP
05/08/2016,OYSTER BUS AUTOTOP,ADOPTION TEAM 1,20,OYSTER TOP UP
05/08/2016,OYSTER AUTOTOPUP,LEAVING CARE SUPPORT SERVICES,20,OYSTER TOP UP SW
05/08/2016,AMAZON EU,HEAD OF ASSET STRATEGY AND DEVELOPMENT,56.92,PPE: HIGH VIZ PARKA JACKET.
05/08/2016,GRO HM PASSPORT OFFICE,LEAVING CARE LAC OTHER CARE,-9.25,REFUND FOR BIRTH CERTIFICATE APPLICATION - RS
05/08/2016,GWR WEBSALES ECOM,LEAVING CARE SUPPORT SERVICES,24.4,RTN FROM LONDON TO HERNE BAY ON 10.8.16 (11.9%)
05/08/2016,GWR WEBSALES ECOM,LEAVING CARE SUPPORT SERVICES,52.2,RTN FROM LONDON TO NORWICH ON 3.8.16 (25.45%)
05/08/2016,GWR WEBSALES ECOM,LEAVING CARE SUPPORT SERVICES,20,RTN FROM LONDON TO RAINHAM ON 19.8.16  (9.75%)
05/08/2016,GWR WEBSALES ECOM,LEAVING CARE SUPPORT SERVICES,44.9,RTN FROM LONDON TO RAMSGATE  ON 3.8.16 (21.89%)
05/08/2016,GWR WEBSALES ECOM,LEAVING CARE LAC OTHER CARE,45.6,RTN FROM READING TO S.CROYDON FOR CONTACT ON 13.8.16  & 8.10.16
05/08/2016,GWR WEBSALES ECOM,REFERRAL AND ASSESSMENT TEAM 1,123,RTN FROM SHEFFIELD TO LONDON - CONTACT
05/08/2016,GWR WEBSALES ECOM,LEAVING CARE SUPPORT SERVICES,63.6,SGL FROM LONDON TO EXETER ON 12.8.16  (31.01%)
05/08/2016,OYSTER BUS AUTOTOP,ADULT SERVICES BUSINESS SUPPORT,20,STAFF TRAVEL
05/08/2016,OYSTER BUS AUTOTOP,ADULT SERVICES BUSINESS SUPPORT,20,STAFF TRAVEL
05/08/2016,OYSTER BUS AUTOTOP,ADULT SERVICES BUSINESS SUPPORT,20,STAFF TRAVEL
05/08/2016,OYSTER BUS AUTOTOP,ADULT SERVICES BUSINESS SUPPORT,20,STAFF TRAVEL
05/08/2016,OYSTER AUTOTOPUP,FSI - RIVERVIEW TEAM (AREA 4),20,"SW, TRAVEL TO VISITS AND COURT.  RIVERVIEW TM."
05/08/2016,GWR WEBSALES ECOM,EXCHANGE OF CHEQUES - C&YP,86.3,"SW VISIT, KENT HOUSE TO NEATH RETURN 05.08.2016,  - SW"
05/08/2016,GWR WEBSALES ECOM,QUALITY ASSURANCE,44.8,"TRAVEL TO LAC REVIEW - STEVENAGE TO GRANTHAM RETURN 19.08.2016,  - IRO"
06/08/2016,ADOBE  ID CREATIVE CLD,ENVIRONMENT ADMINISTRATION,17.15,DATA CHARGES
06/08/2016,BROWN'S FLOWERS,MEMBERS' ALLOWANCES,39,FOR PROVIDING FLORAL DISPLAYS AT THE ARMED FORCES DAY EVENT HELD AT ALLERFORD ROAD MEMORIAL GARDENS HOSTED BY THE MAYOR
06/08/2016,OYSTER BUS AUTOTOP,AWLD SPECIALIST SW TEAM,20,OYSTER BUS AUTOTOP
06/08/2016,OYSTER AUTOTOPUP,SUPPORT & DEVELOPMENT TEAM 2,20,OYSTER TOP UP
06/08/2016,OYSTER BUS AUTOTOP,ADULT SERVICES BUSINESS SUPPORT,20,STAFF TRAVEL
06/08/2016,OYSTER BUS AUTOTOP,ADULT SERVICES BUSINESS SUPPORT,20,STAFF TRAVEL
06/08/2016,OYSTER BUS AUTOTOP,ADULT SERVICES BUSINESS SUPPORT,20,STAFF TRAVEL
06/08/2016,OYSTER BUS AUTOTOP,HOSTELS: GENERAL,20,TRANSPORT COSTS
07/08/2016,ARGOS LTD,ENVIRONMENT ADMINISTRATION,777,MOBILE DEVICES FOR CLEANSING TEAM
07/08/2016,WWW.JOHNLEWIS.COM,ENVIRONMENT ADMINISTRATION,747,MOBILE DEVICES FOR CLEANSING TEAM
07/08/2016,OYSTER BUS AUTOTOP,AWLD SPECIALIST SW TEAM,20,OYSTER BUS AUTOTOP
07/08/2016,OYSTER BUS AUTOTOP,AWLD SPECIALIST SW TEAM,20,OYSTER BUS AUTOTOP
07/08/2016,OYSTER AUTOTOPUP,LEAVING CARE SUPPORT SERVICES,20,OYSTER CARD POOL
07/08/2016,OYSTER BUS AUTOTOP,LEAVING CARE SUPPORT SERVICES,20,OYSTER TOP UP
07/08/2016,OYSTER BUS AUTOTOP,SUPPORT  & DEVELOPMENT TEAM 1,20,OYSTER TOP UP
07/08/2016,OYSTER BUS AUTOTOP,ADULT SERVICES BUSINESS SUPPORT,20,STAFF TRAVEL
07/08/2016,OYSTER BUS AUTOTOP,ADULT SERVICES BUSINESS SUPPORT,20,STAFF TRAVEL
07/08/2016,OYSTER BUS AUTOTOP,ADULT SERVICES BUSINESS SUPPORT,20,STAFF TRAVEL
07/08/2016,OYSTER BUS AUTOTOP,ADULT SERVICES BUSINESS SUPPORT,20,STAFF TRAVEL
07/08/2016,OYSTER BUS AUTOTOP,ADULT SERVICES BUSINESS SUPPORT,20,STAFF TRAVEL
08/08/2016,AMAZON UK MARKETPLACE,LIBS: LIBRARIES OPERATIONAL DEVELOPMENT,10.91,2XAF REQ NA VIA ASKEWS
08/08/2016,AMAZON UK MARKETPLACE,STREET CLEANSING,31.96,4 X PROTECTIVE CASES FOR MOBILE DEVICES (CLEANSING)
08/08/2016,"AMAZON SVCS EUROPE,SAR",LIBS: LIBRARIES OPERATIONAL DEVELOPMENT,11.88,AF REQ NA VIA ASKEWS
08/08/2016,AMAZON EU,LIBS: LIBRARIES OPERATIONAL DEVELOPMENT,10.66,AF REQ NA VIA ASKEWS
08/08/2016,ARGOS RETAIL GROUP,FOSTERING PLACEMENTS,189.99,"ARGOS ORDER ONLINE, 1 X DOUBLE BUGGY/214256954 TO FACILITATE SECTION 24 CARER - SW"
08/08/2016,ARGOS RETAIL GROUP,FOSTERING PLACEMENTS,103.94,"ARGOS ORDER ONLINE, 1 X HOOVER IN ORDER TO REGULATE SECTION 24 PLACEMENT, REF: 1129796761 - SW"
08/08/2016,CAPITAL CAR RENTAL,FLEET & VEHICLE MAINT:FLEET,"2,492.34",HIRE OF FLEET VEHICLES
08/08/2016,WWW.PPLUK.COM,FLEET & VEHICLE MAINT:FLEET,146.42,LICENCE FOR RADIO
08/08/2016,SELCO TRADE CENTRE,HANDYPERSON SCHEME,35.15,MATERIALS
08/08/2016,WWW.MILKANDMORE.CO.UK,LADYWELL DAY CENTRE,164,MILK FOR CLIENT REFRESHMENTS
08/08/2016,AMAZON UK MARKETPLACE,REFUSE: DOMESTIC,31.65,PROTECTIVE PHONE COVERS FOR WASTE TEAM.
08/08/2016,TESCO STORE 2253,YOUNG MAYOR,11.79,REFRESHMENTS FRO YOUNG ADVISORS
08/08/2016,COMPANIES HOUSE,ANTI FRAUD AND CORRUPTION TEAM,37,SEARCHES DURING JULY
08/08/2016,WWW.STAPLES.CO.UK,DOOR 2 DOOR,230.34,SPECIAL BINDING FOLDERS FOR THE ROUNDS
08/08/2016,GWR WEBSALES ECOM,CHILDRENS SERVICES MANAGEMENT,31.3,"SW HOME VISIT - WEST NORWOOD TO HERNE BAY RETURN 09.08.2016,  - SW"
08/08/2016,AMAZON UK MARKETPLACE,LIBS: LIBRARIES OPERATIONAL DEVELOPMENT,12.21,TF REQ NA VIA ASKEWS
08/08/2016,GWR WEBSALES ECOM,FSI - MAYOW TEAM (AREA 4) - SECTION 17,61.5,"TICKET FOR FATHER TO ATTEND PSYCHIATRIC ASSESSMENT, TRURO TO WATERLOO ONE WAY 10.08.2016, - SW"
08/08/2016,GWR WEBSALES ECOM,QUALITY ASSURANCE,38.2,"TRAVEL TO LAC REVIEW - WESTGATE ON SEA TO LONDON RETURN 12.08.2016,  - IRO "
08/08/2016,TRAINLINE,CULTURAL AND COMMUNITY DEVELOPMENT SERV,56.1,VISITING OF MAIN GRANT RECIPIENTS FOR 2016 MONITORING OF THE GROUP.
09/08/2016,WOOD FINISHES DIRECT L,YOUTH OFFENDING SERVICE,45.73,WOOD STAIN FOR REPARATION
09/08/2016,EE TOP UP VESTA,ENVIRONMENT ADMINISTRATION,15,1 X MOBILE TOP UP
09/08/2016,GWR WEBSALES ECOM,FSI - GOLDSMITHS TEAM (AREA 1),81,"2 X SW'S AND TM TO ATTEND PLACEMENT SUPPORT MEETING, LONDON BRIDGE TO SEAFORD RETURN 13.08.2016, - SW & TM"
09/08/2016,BLACKHEATH CONSERVATOI,LEWISHAM MUSIC SERVICE,858.23,ABRSM EXAMS JULY 2016
09/08/2016,TRAVELODGE,FSI - GOLDSMITHS TEAM (AREA 1) - SECTIO,61,"BROMLEY TRAVEL LODGE - HOTEL FOR FATHER AND CHILD TO COME DOWN FROM SCOTLAND FOR CONTACT WITH MOTHER 09.08.2016, - SW"
09/08/2016,PREMIER INN,LEAVING CARE LAC OTHER CARE,92.99,COST OF B&B FOR ZH FROM 9TH - 10TH AUGUST 2016
09/08/2016,WWW.CRIMELINE.INFO,PRACTICE SUPPORT OFFICE,124.8,CRIMELINE SINGLE USER SUBSCRIPTION
09/08/2016,WWW.ICO.GOV.UK,ELECTORAL REGISTRATION OFFICER,35,DATA PROTECTION REG - ELECTORAL SERVICES
09/08/2016,EASYJET,FSI - GOLDSMITHS TEAM (AREA 1) - SECTIO,155.5,"FLIGHTS (EASYJET) FOR FATHER AND CHILD TO COME DOWN FROM SCOTLAND FOR CONTACT WITH MOTHER, - SW"
09/08/2016,FLYBE.COM GPEJ9R       0,FSI - GOLDSMITHS TEAM (AREA 1),104.49,"FLIGHTS FOR SOCIAL WORKER TO VISIT CHILD IN SCOTLAND TO COMPLETE SECTION 7 REPORT AND CARRY OUT CIN VISIT 31.08.2016, - SW"
09/08/2016,SYDENHAM DIY LTD,HOSTELS TEAM A,31.96,HAZARD TAPE AND MASKING TAPE FOR USE IN HOSTELS ON STAIRS
09/08/2016,GWR WEBSALES ECOM,SUPPORT & DEVELOPMENT TEAM 2,20,OYSTER TOP UP
09/08/2016,NORMANS,LEWISHAM MUSIC SERVICE,102,SAMPLE
09/08/2016,AMAZON PRIME,CEL: HEADQUARTERS & CENTRALLY HELD BUDG,79,POSTAGE COSTS FOR ONE YEAR - AMAZON.
09/08/2016,WWW.POSTURITE.CO.UK,OCCUPATIONAL THERAPY SERVICE,179.94,POSTURITE - DOUBLE LEG REST CASTORS. VAT INCLUDED IN PRICE.
09/08/2016,TERRYS ALL LOCKS,AREA 1 CHILDREN CENTRE (HONOR OAK),60,REPLACEMENT LOCK FOR HONOR OAK (DEPOT) CRECHE TO GARDEN
09/08/2016,GWR WEBSALES ECOM,LEAVING CARE LAC OTHER CARE,14.4,RTN FROM BASILDON TO PECKHAM RYE FOR CONTACT 9.8.16 (9.35%)
09/08/2016,GWR WEBSALES ECOM,LEAVING CARE LAC OTHER CARE,71.3,RTN FROM BROMLEY SOUTH TO UTTOEXTER FOR CONTACT ON 17.8.16 (46.3%)
09/08/2016,GWR WEBSALES ECOM,LEAVING CARE SUPPORT SERVICES,68.3,RTN FROM LONDON TO UTTOEXTER ON 17.8.16  (44.35%)
09/08/2016,AMAZON UK MARKETPLACE,CEL: BROCKLEY RISE CENTRE,14.17,SALINE SOLUTION AND STERILE WIPES TO REPLENISH FIRST AID BOXES AT BROCKLEY RISE CENTRE
09/08/2016,GWR WEBSALES ECOM,QUALITY ASSURANCE,36.4,"TRAVEL TO LAC REVIEW - WATERLOO TO PORTSMOUTH HARBOUR RETURN 16.08.2016, REF: 6TN87FLC - IRO"
09/08/2016,LOVE2SHOP.CO.UK,YS COMMUNITY & YOUTH SERVICE MANAGEMENT,133.5,YOUTH FORUM VOUCHERS
10/08/2016,OYSTER BUS AUTOTOP,LEAVING CARE SUPPORT SERVICES,20,OYSTER TOP UP
10/08/2016,OYSTER AUTOTOPUP,LEAVING CARE SUPPORT SERVICES,20,OYSTER TOP UP
10/08/2016,POST OFFICE COUNTER,ENVIRONMENT ADMINISTRATION,15,1 X PHONE TOP UP
10/08/2016,AMAZON UK MARKETPLACE,YOUTH OFFENDING SERVICE,58.34,2 X ARTIFICIAL PLANTS FOR RECEPTION
10/08/2016,MATS GRIDS - VT,LS: LADYWELL ARENA,50,24 PANELS SHED BASE KIT FOR LADYWELL ARENA PROJECT
10/08/2016,WHALEYS /BRADFORD/ LTD,CEL: TEXTILE & FLORAL DESIGN,118.94,CALICO MEDIUM
10/08/2016,WHALEYS /BRADFORD/ LTD,CEL: TEXTILE & FLORAL DESIGN,114.19,CALICO MEDIUM
10/08/2016,WHALEYS /BRADFORD/ LTD,CEL: TEXTILE & FLORAL DESIGN,4.75,CALICO MEDIUM
10/08/2016,HMCOURT-SERVICES.G,CENTRAL DEBTORS TEAM,110,CHARGING ORDER -COUNCIL TAX
10/08/2016,CODIQA.COM,ENVIRONMENT ADMINISTRATION,39.64,DATA CHARGES
10/08/2016,WALTON WEB,LS: LADYWELL ARENA,169.95,EQUIPMENT FOR LADYWELL ARENA PROJECT - WALTONS OVERLAP APEX WOODEN SHED.
10/08/2016,PAYPAL  FACEBOOK,COMMUNICATIONS & MARKETING,40,FACEBOOK ADVERTISING COSTS
10/08/2016,HYDRAQUIP,FLEET & VEHICLE MAINT:FLEET,147.66,HYDRAULIC HOSES FOR FLEET VEHICLES
10/08/2016,HYDRAQUIP,FLEET & VEHICLE MAINT:FLEET,100.28,HYDRAULIC HOSES FOR FLEET VEHICLES
10/08/2016,HYDRAQUIP,FLEET & VEHICLE MAINT:FLEET,100.03,HYDRAULIC HOSES FOR FLEET VEHICLES
10/08/2016,HYDRAQUIP,FLEET & VEHICLE MAINT:FLEET,64.37,HYDRAULIC HOSES FOR FLEET VEHICLES
10/08/2016,HYDRAQUIP,FLEET & VEHICLE MAINT:FLEET,58.52,HYDRAULIC HOSES FOR FLEET VEHICLES
10/08/2016,HYDRAQUIP,FLEET & VEHICLE MAINT:FLEET,54.12,HYDRAULIC HOSES FOR FLEET VEHICLES
10/08/2016,HYDRAQUIP,FLEET & VEHICLE MAINT:FLEET,47.81,HYDRAULIC HOSES FOR FLEET VEHICLES
10/08/2016,HYDRAQUIP,FLEET & VEHICLE MAINT:FLEET,44.4,HYDRAULIC HOSES FOR FLEET VEHICLES
10/08/2016,HYDRAQUIP,FLEET & VEHICLE MAINT:FLEET,502.81,HYDRAULIC HOSES FOR FLEET VEHICLES
10/08/2016,HYDRAQUIP,FLEET & VEHICLE MAINT:FLEET,389.25,HYDRAULIC HOSES FOR FLEET VEHICLES
10/08/2016,HYDRAQUIP,FLEET & VEHICLE MAINT:FLEET,369.6,HYDRAULIC HOSES FOR FLEET VEHICLES
10/08/2016,HYDRAQUIP,FLEET & VEHICLE MAINT:FLEET,303.37,HYDRAULIC HOSES FOR FLEET VEHICLES
10/08/2016,HYDRAQUIP,FLEET & VEHICLE MAINT:FLEET,237.01,HYDRAULIC HOSES FOR FLEET VEHICLES
10/08/2016,HYDRAQUIP,FLEET & VEHICLE MAINT:FLEET,237.01,HYDRAULIC HOSES FOR FLEET VEHICLES
10/08/2016,HYDRAQUIP,FLEET & VEHICLE MAINT:FLEET,197.44,HYDRAULIC HOSES FOR FLEET VEHICLES
10/08/2016,ARGOS LTD,ENVIRONMENT ADMINISTRATION,313.99,IPADS X 2 FOR CLEANSING
10/08/2016,LONDON MIDLAND WEB,FSI - GOLDSMITHS TEAM (AREA 1),24.6,"LONDON MIDLAND - SW TO CARRY OUT CP VISIT, LONDON VICTORIA TO RANSGATE RETURN 10.08.2016, - SW"
10/08/2016,SELCO TRADE CENTRE,HANDYPERSON SCHEME,9.34,MATERIALS
10/08/2016,HOMEBASE LTD 077,HANDYPERSON SCHEME,11.48,MATERIALS
10/08/2016,SELCO TRADE CENTRE,HANDYPERSON SCHEME,17.68,MATERIALS
10/08/2016,B & Q 1346,HANDYPERSON SCHEME,8.94,MATERIALS
10/08/2016,PAYPAL  ANGELANDDOV,YOUTH OFFENDING SERVICE,11.98,MEMORY BOOK
10/08/2016,OYSTER BUS AUTOTOP,AWLD SPECIALIST SW TEAM,20,OYSTER BUS AUTOTOP
10/08/2016,OYSTER BUS AUTOTOP,AWLD SPECIALIST SW TEAM,20,OYSTER BUS AUTOTOP
10/08/2016,OYSTER AUTOTOPUP,CEL: WIDER FAMILY LEARNING,20,OYSTER CARD TOP UP 
10/08/2016,OYSTER BUS AUTOTOP,RECRUITMENT & ASSESSMENT TEAM,20,OYSTER TOP UP
10/08/2016,AMAZON EU,YOUTH OFFENDING SERVICE,11.76,PAINT BRUSH - UPW
10/08/2016,AMAZON UK MARKETPLACE,HEAD OF ASSET STRATEGY AND DEVELOPMENT,1.99,PPE: SAFETY SPECTACLES
10/08/2016,ARGOS LTD,PLANNING DEVELOPMENT CONTROL,24.99,PURCHASE OF CLOCK FOR PLANNING INFORMATION OFFICER - DUTY PLANNER SESSIONS
10/08/2016,TRAINLINE,YOUTH OFFENDING SERVICE,-200.75,REFUND
10/08/2016,HYDRAQUIP,FLEET & VEHICLE MAINT:FLEET,-237.01,REFUND HYDRAULIC HOSE
10/08/2016,GWR WEBSALES ECOM,LEAVING CARE LAC OTHER CARE,18.6,RTN FROM CRAWLEY TO LONDON ON 12.8.16 FOR CONTACT (8.09%)
10/08/2016,GWR WEBSALES ECOM,LEAVING CARE SUPPORT SERVICES,56.5,RTN FROM LONDON TO BRISTOL PARKWAY ON 15.8.16  (24.58%)
10/08/2016,GWR WEBSALES ECOM,LEAVING CARE LAC OTHER CARE,154.8,RTN FROM SYDENHAM TO THORNTON ON 18.8.16 FOR CONTACT (67.33%)
10/08/2016,OYSTER BUS AUTOTOP,LEAVING CARE SUPPORT SERVICES,20,SW OYSTER TOPUP
10/08/2016,AMAZON UK MARKETPLACE,YOUTH OFFENDING SERVICE,4.99,SAND PAPER
10/08/2016,OYSTER BUS AUTOTOP,ADULT SERVICES BUSINESS SUPPORT,20,STAFF TRAVEL
10/08/2016,OYSTER BUS AUTOTOP,ADULT SERVICES BUSINESS SUPPORT,20,STAFF TRAVEL
10/08/2016,OYSTER BUS AUTOTOP,ADULT SERVICES BUSINESS SUPPORT,20,STAFF TRAVEL
10/08/2016,GREATER ANGLIA - STANS,FSI - GOLDSMITHS TEAM (AREA 1) - SECTIO,31,"STANSTEAD EXPRESS - FATHER TO BRING CHILD DOWN FROM SCOTLAND FOR CONTACT WITH MOTHER - STANSTED AIRPORT TO LIVERPOOL STREET RETURN 15.08.2016, - SW "
10/08/2016,AXMINSTER.CO.UK,CEL: TEXTILE & FLORAL DESIGN,50.78,TEXTILE MATERIALS
10/08/2016,GWR WEBSALES ECOM,FSI - MAYOW TEAM (AREA 4) - SECTION 17,7.3,"TICKETS FOR FATHER TO ATTEND PSYCHIATRIC APPOINTMENT 11.08.2016, PADDINGTON TO GROVE PARK "
10/08/2016,GWR WEBSALES ECOM,FSI - KINGFISHER TEAM (AREA 2),33.9,"TOOTING TO LUTON RETURN 12.08.2016, FOR SW TO UNDERTAKE CP VISIT - SW"
10/08/2016,TRAVELODGE,FSI - GOLDSMITHS TEAM (AREA 1),78.45,"TRAVELLODGE EDINBURGH CENTRAL STREET - HOTEL FOR SOCIAL WORKER TO VISIT ALANI IN SCOTLAND TO COMPLETE SECTION 7 REPORT AND FOR CIN VISIT 10.08.2016, - SW"
10/08/2016,OYSTER AUTOTOPUP,FSI - PENDRAGON TEAM (AREA 3),20,SW TRAVEL TO VISITS AND COURT. PENDRAGON TM. 
11/08/2016,OYSTER BUS AUTOTOP,LEAVING CARE SUPPORT SERVICES,20,OYSTER TOP UP
11/08/2016,OYSTER BUS AUTOTOP,LEAVING CARE SUPPORT SERVICES,20,OYSTER TOP UP
11/08/2016,RYNESS ELECTRICAL SUPP,HOSTELS TEAM A,68.4,100 LIGHT BULBS FOR USE IN HOSTELS
11/08/2016,DVLA VEHICLE TAX,MEMBERS' ALLOWANCES,287.5,ANNUAL ROAD TAX FOR THE MAYORAL CAR
11/08/2016,BT BILL PAYMENT 1,ENVIRONMENT ADMINISTRATION,68.88,BROADBAND CHARGES
11/08/2016,WH & DB DOOLE TA B,STREET CLEANSING,558,BROOMS AND ACCESSORIES
11/08/2016,WWW.GOMPELS.CO.UK,LIFESTYLE INTENSIVE SUPPORT RESOURCE,112.2,CENTREFEED ROLLS FOR USE WITH CLIENTS & VARIOUS HOUSEHOLD REQUIREMENTS
11/08/2016,WH & DB DOOLE TA B,ENVIRONMENT ADMINISTRATION,563.4,CLEANSING BROOMS AND ACCESSORIES
11/08/2016,NATIONALITY DIRECTORAT,LEAVING CARE LAC OTHER CARE,374,COST OF NATIONALITY APPLICATION FOR SHO AND SHAO
11/08/2016,HOMEBASE LTD 015,HANDYPERSON SCHEME,20.99,MATERIALS
11/08/2016,OYSTER AUTOTOPUP,AWLD SPECIALIST SW TEAM,20,OYSTER AUTOTOPUP
11/08/2016,OYSTER BUS AUTOTOP,AWLD SPECIALIST SW TEAM,20,OYSTER BUS AUTOTOP
11/08/2016,OYSTER BUS AUTOTOP,LEAVING CARE SUPPORT SERVICES,20,OYSTER TOP UP
11/08/2016,OYSTER BUS AUTOTOP,LEAVING CARE SUPPORT SERVICES,20,OYSTER TOP UP
11/08/2016,OYSTER AUTOTOPUP,LEAVING CARE SUPPORT SERVICES,20,OYSTER TOP UP
11/08/2016,OYSTER BUS AUTOTOP,LEAVING CARE SUPPORT SERVICES,20,OYSTER TOP UP
11/08/2016,OYSTER AUTOTOPUP,ADOPTION TEAM 1,20,OYSTER TOP UP
11/08/2016,AMAZON UK MARKETPLACE,HEAD OF ASSET STRATEGY AND DEVELOPMENT,2.24,PPE: DEXIT-GRIP GLOVE
11/08/2016,AMAZON UK MARKETPLACE,HEAD OF ASSET STRATEGY AND DEVELOPMENT,4.99,PPE: HARD HAT SAFETY HELMET.
11/08/2016,AMAZON UK MARKETPLACE,HEAD OF ASSET STRATEGY AND DEVELOPMENT,36.79,PPE: LADIES SAFETY BOOTS AND  HIGH VIZ VEST WITH POCKETS.
11/08/2016,SAINSBURYS 0693,MAYORS TRAINEESHIP PROGRAMME,16.5,REVIEWED AS CARDHOLDER NOT BACK IN OFFICE UNTIL OCTOBER.
11/08/2016,GWR WEBSALES ECOM,ADOPTION TEAM 1,23.3,RTN FROM BROMLEY SOUTH TO HERNE BAY ON 11.8.16
11/08/2016,GWR WEBSALES ECOM,LEAVING CARE LAC OTHER CARE,18.6,RTN FROM CRAWLEY TO LONDON ON 12.8.16
11/08/2016,GWR WEBSALES ECOM,ADOPTION TEAM 1,109.5,RTN FROM LEWISHAM TO EXETER ON 12.8.16 
11/08/2016,OYSTER BUS AUTOTOP,ADULT SERVICES BUSINESS SUPPORT,20,STAFF TRAVEL
11/08/2016,OYSTER BUS AUTOTOP,ADULT SERVICES BUSINESS SUPPORT,20,STAFF TRAVEL
11/08/2016,ADVENTURE ISLAND,YS SOUTH WEST (AREA 4),"2,450.00",TICKETS FOR SUMMER PROGRAMME BOROUGH WIDE
11/08/2016,ADVENTURE ISLAND,YS SOUTH WEST (AREA 4),"2,450.00",TICKETS FOR SUMMER PROGRAMME BOROUGH WIDE
11/08/2016,OYSTER BUS AUTOTOP,HOME IMPROVEMENT GRANTS & STAYING PUT S,20,TRANSPORT
11/08/2016,OYSTER BUS AUTOTOP,LICENSING SERVICES,20,TRANSPORT
11/08/2016,CATFORD STATION SST,YOUNG MAYOR,10,TRANSPORT FOR YOUNG ADVISORS TO ATTEND EVENTS
11/08/2016,STAPLETON'S (RETAI,FLEET & VEHICLE MAINT:FLEET,210,TYRES FOR FLEET VEHICLES
11/08/2016,OYSTER BUS AUTOTOP,FAMILY SUPPORT & INTERVENTION SUPP SERV,20,SW TRAVEL TO VISITS AND COURT. LAUNCELOT TM. 
12/08/2016,OYSTER BUS AUTOTOP,LEAVING CARE SUPPORT SERVICES,20,OYSTER TOP UP
12/08/2016,OYSTER AUTOTOPUP,LEAVING CARE SUPPORT SERVICES,20,OYSTER TOP UP
12/08/2016,AMAZON EU,LIBS: LIBRARIES OPERATIONAL DEVELOPMENT,10.5,ANF REQ NA VIA ASKEWS
12/08/2016,PASSPORT FEE,LEAVING CARE LAC OTHER CARE,112,COST OF PASSPORT FOR JW
12/08/2016,USCUSTOMS ESTA APPL PM,LEAVING CARE LAC OTHER CARE,11.15,COST OF VISA APPLICATION FOR AK
12/08/2016,WWW.SPELLBOUNDBEAD.CO.,"CEL: DESIGN, MEDIA & FOOD",99.4,DESIGN MATERIALS
12/08/2016,WWW.SHOP-EQUIP.COM,"CEL: DESIGN, MEDIA & FOOD",113.56,DESIGN MATERIALS
12/08/2016,WWW.EDUQUIP.CO.UK,CEL: SKILLS FOR LIFE - LITERACY,90.08,ENGLISH EDUCATION MATERIALS
12/08/2016,WWW.MAPLIN.CO.UK,CULTURAL AND COMMUNITY DEVELOPMENT SERV,21.98,EQUIPMENT FOR USE GENERAL USE OF THE CULTURAL AND COMMUNITY DEVELOPMENT TEAM - PRESENTATION KIT.
12/08/2016,WWW.CREATIVEGLASSSHOP.,"CEL: DESIGN, MEDIA & FOOD",211.07,GLASSWORK MATERIALS
12/08/2016,OYSTER BUS AUTOTOP,FSI - MERIDIAN TEAM (AREA 2),20,SW TRAVEL TO VISITS AND COURT. TM. 
12/08/2016,MAPLIN FORESTHILL SE23,HANDYPERSON SCHEME,4.99,MATERIALS
12/08/2016,DUNELM LTD,HANDYPERSON SCHEME,2.78,MATERIALS
12/08/2016,HOMEBASE LTD 015,HANDYPERSON SCHEME,15.99,MATERIALS
12/08/2016,WWW.SKILLSFORCARE.ORG.,REABLEMENT TEAM,25,MENTAL CAPACITY LEAFLETS
12/08/2016,OYSTER AUTOTOPUP,AWLD SPECIALIST SW TEAM,20,OYSTER AUTOTOPUP
12/08/2016,OYSTER BUS AUTOTOP,AWLD SPECIALIST SW TEAM,20,OYSTER BUS AUTOTOP
12/08/2016,OYSTER BUS AUTOTOP,AWLD SPECIALIST SW TEAM,20,OYSTER BUS AUTOTOP
12/08/2016,OYSTER BUS AUTOTOP,SEN SPECIALIST TEACHERS,40,OYSTER CARD AUTO TOP UP  ( SENSORY TEAM)
12/08/2016,OYSTER BUS AUTOTOP,LEAVING CARE SUPPORT SERVICES,20,OYSTER TOP UP
12/08/2016,OYSTER BUS AUTOTOP,LEAVING CARE SUPPORT SERVICES,20,OYSTER TOP UP
12/08/2016,GWR WEBSALES ECOM,LEAVING CARE LAC OTHER CARE,272,RTN FROM GROVE PARK TO PRUDHOE FOR CONTACT ON 26.8-27.8.16 (75.96%)
12/08/2016,GWR WEBSALES ECOM,QUALITY ASSURANCE,68.3,RTN FROM LONDON TO UTTOEXTER  17.8.16
12/08/2016,GWR WEBSALES ECOM,LEAVING CARE LAC OTHER CARE,86.1,RTN FROM MOTTINGHAM TO WARRINGTON BANK QUAY FOR CONTACT ON 1.9.16 (24.04%)
12/08/2016,GWR WEBSALES ECOM,SUPPORT & DEVELOPMENT TEAM 2,36,RTN FROM PECKHAM TO BROADSTAIRS ON 16.8.16
12/08/2016,GWR WEBSALES ECOM,DISABLED CHILDRENS SERVICE TEAM 2,49,RTN FROM SYDENHAM HILL TO STROUD (CWCN) ON 17.8.16
12/08/2016,AMAZON UK RETAIL AMAZO,STREET MARKETS MANAGEMENT & ADMIN.,26.28,SPRAY PAINT FOR MARKET PITCH MARKINGS 3 CANS
12/08/2016,OYSTER BUS AUTOTOP,ADULT SERVICES BUSINESS SUPPORT,20,STAFF TRAVEL
12/08/2016,OYSTER BUS AUTOTOP,ADULT SERVICES BUSINESS SUPPORT,20,STAFF TRAVEL
12/08/2016,OYSTER BUS AUTOTOP,ADULT SERVICES BUSINESS SUPPORT,20,STAFF TRAVEL
12/08/2016,OYSTER BUS AUTOTOP,ADULT SERVICES BUSINESS SUPPORT,20,STAFF TRAVEL
12/08/2016,OYSTER BUS AUTOTOP,ADULT SERVICES BUSINESS SUPPORT,20,STAFF TRAVEL
12/08/2016,ADVENTURE ISLAND,YS SOUTH WEST (AREA 4),"2,030.00",TICKETS FOR SUMMER PROGRAMME BOROUGH WIDE
13/08/2016,OYSTER BUS AUTOTOP,AWLD SPECIALIST SW TEAM,20,OYSTER BUS AUTOTOP
13/08/2016,OYSTER BUS AUTOTOP,HOSTELS: GENERAL,20,OYSTER CARD TOP UP 
13/08/2016,OYSTER AUTOTOPUP,ADOPTION TEAM 1,20,OYSTER TOP UP
13/08/2016,OYSTER BUS AUTOTOP,ADULT SERVICES BUSINESS SUPPORT,20,STAFF TRAVEL
13/08/2016,OYSTER BUS AUTOTOP,ADULT SERVICES BUSINESS SUPPORT,20,STAFF TRAVEL
13/08/2016,OYSTER BUS AUTOTOP,ADULT SERVICES BUSINESS SUPPORT,20,STAFF TRAVEL
13/08/2016,JOHN BATTLEDAY,YS SOUTH WEST (AREA 4),"1,140.00","TICKETS FOR SUMMER PROGRAMME BOROUGH WIDE (HP,RS,DEPT APG)"
13/08/2016,OYSTER AUTOTOPUP,HEAD OF ASSET STRATEGY AND DEVELOPMENT,20,TOP UP OYSTER CARD.
13/08/2016,OYSTER BUS AUTOTOP,HEAD OF ASSET STRATEGY AND DEVELOPMENT,20,TOP UP OYSTER CARD.
13/08/2016,OYSTER AUTOTOPUP,HEAD OF ASSET STRATEGY AND DEVELOPMENT,20,TOP UP OYSTER CARD.
13/08/2016,OYSTER AUTOTOPUP,HEAD OF ASSET STRATEGY AND DEVELOPMENT,20,TOP UP OYSTER CARD.
13/08/2016,OYSTER AUTOTOPUP,LEAVING CARE SUPPORT SERVICES,20,OYSTER
14/08/2016,OYSTER BUS AUTOTOP,FSI - GOLDSMITHS TEAM (AREA 1),20,SW TRAVEL TO VISITS AND COURT. TM. 
14/08/2016,OYSTER BUS AUTOTOP,FSI - LAUNCELOT TEAM (AREA 3),20,TRAVEL TO VISITS AND COURT. LAUNCELOT TM.
14/08/2016,OYSTER BUS AUTOTOP,AWLD SPECIALIST SW TEAM,20,OYSTER BUS AUTOTOP
14/08/2016,OYSTER BUS AUTOTOP,STREET MARKETS MANAGEMENT & ADMIN.,20,OYSTER CARD TOP UP FOR MARKET OFFICER FOR TRAVEL BETWEEN MARKETS
14/08/2016,OYSTER AUTOTOPUP,LEAVING CARE SUPPORT SERVICES,20,OYSTER TOP UP
14/08/2016,OYSTER BUS AUTOTOP,LEAVING CARE SUPPORT SERVICES,20,OYSTER TOP UP
14/08/2016,OYSTER AUTOTOPUP,CEL: WIDER FAMILY LEARNING,20,OYSTERCARD TOPUP 
15/08/2016,ARGOS LTD,PRACTICE SUPPORT OFFICE,117.47,3 X SUITCASES - VARIOUS SIZES FOR TRANSPORT OF BUNDLES TO COURT ETC - REF PDM
15/08/2016,B & Q 1346,LEEMORE CENTRE,86.04,ASSORTED GARDEN EQUIPMENT - FOR LEEMORE COMMUNITY HUB
15/08/2016,B & Q 1346,CCTRES: EVELYN STREET,56.04,ASSORTED GARDEN EQUIPMENT FOR EVELYN COMMUNITY CENTRE
15/08/2016,B & Q 1346,CCTRES: COMMUNITY CENTRES MGT,86.04,ASSORTED GARDEN EQUIPMENT FOR MULBERRY COMMUNITY HUB
15/08/2016,B & Q 1037,CCTRES: SEDGEHILL,13.42,ASSORTED GARDEN EQUIPMENT FOR SEDGEHILL CENTRE
15/08/2016,B & Q 1346,NEIGHBOURHOOD DEVELOPMENT: LOCAL ASSEMB,82.54,ASSORTED GARDEN EQUIPMENT FOR SYDENHAM CENTRE
15/08/2016,B & Q 1037,MOONSHOT CENTRE,40.42,ASSORTED GARDEN EQUIPMENT FOR THE MOONSHOT CENTRE
15/08/2016,LEWISHAM COUNCIL,LEAVING CARE LAC OTHER CARE,11.51,BIRTH CERTIFICATE
15/08/2016,MSFT  <E05002M68D>,ENVIRONMENT ADMINISTRATION,147.63,DATA CHARGES
15/08/2016,RHUBARB & CUSTARD CAFE,ED: EUROPEAN RIVER CORRIDOR IMPROV PLAN,18.6,DEP 192 - REFRESHMENTS (X5) FOR ICC/RIVERS CROSS OVER VISIT TO LEWISHAM
15/08/2016,PAYPAL  1AND1 LTD,COMMUNICATIONS & MARKETING,33.55,DOMAIN NAME LICENCE FEE
15/08/2016,WWW.WIGHTLINK.CO.UK,QUALITY ASSURANCE,18.4,"FERRY FOR IRO TO ATTEND LAC REVIEW PORTSMOUTH HARBOUR TO RYDE PIER,  - IRO (QA)"
15/08/2016,GWR WEBSALES ECOM,ADOPTION TEAM 1,25.8,TO HERNE BAY TO SEE ADOPTERS
15/08/2016,GWR WEBSALES ECOM,ALBANY,104.3,SW TRAVEL TO VISIT IN LEEDS. ON 16.8.16 GWR TKT
15/08/2016,OYSTER BUS AUTOTOP,AWLD SPECIALIST SW TEAM,20,OYSTER BUS AUTOTOP
15/08/2016,OYSTER AUTOTOPUP,LEAVING CARE SUPPORT SERVICES,20,OYSTER CARD POOL 
15/08/2016,OYSTER BUS AUTOTOP,STREET MARKETS MANAGEMENT & ADMIN.,20,OYSTER CARD TOP UP FOR MARKET OFFICER FOR TRAVEL BETWEEN MARKETS
15/08/2016,WWW.TOTALWORKWEAR.CO.U,HEAD OF ASSET STRATEGY AND DEVELOPMENT,63.84,PPE: HIGH VIZ EXECUTIVE 5 IN 1 JACKET - X LARGE.
15/08/2016,TOTAL WORKWEAR,HEAD OF ASSET STRATEGY AND DEVELOPMENT,283.56,PPE: HIGH VIZ JACKETS X 5
15/08/2016,TESCO STORE 2253,YOUNG MAYOR,17.43,REFRESHMENTS FOR YOUNG ADVISORS
15/08/2016,B & Q 1037,CCTRES: SEDGEHILL,18.19,SPLIT - ASSORTED GARDEN EQUIPMENT (62.49%)
15/08/2016,B & Q 1037,CCTRES: SEDGEHILL,29.38,SPLIT - ASSORTED GARDEN ITEMS (43.44%)
15/08/2016,B & Q 1037,CCTRES: COMMUNITY CENTRES MGT,13.67,SPLIT - GARDEN AND LAWN RAKES (20.21%)
15/08/2016,B & Q 1037,LEEMORE CENTRE,6.92,SPLIT - GARDEN RAKE (10.23%)
15/08/2016,B & Q 1037,CCTRES: COMMUNITY CENTRES MGT,6.92,SPLIT - GARDEN RAKE (23.77%)
15/08/2016,B & Q 1037,CCTRES: EVELYN STREET,10.92,SPLIT - GARDEN RAKE AND UTILITY TUB. (16.14%)
15/08/2016,B & Q 1037,MOONSHOT CENTRE,6.75,SPLIT - LAWN RAKE (9.98%)
15/08/2016,B & Q 1037,MOONSHOT CENTRE,4,SPLIT - UTILITY TUB (13.74%)
16/08/2016,WWW.ICONWALLSTICKERS.C,YOUTH OFFENDING SERVICE,19.96,1 WALL STICKER FOR RECEPTION
16/08/2016,AMZ CANVART,YOUTH OFFENDING SERVICE,75.56,3 X CANVAS FOR RECEPTION AND BUSINESS SUPPORT
16/08/2016,AMAZON UK MARKETPLACE,CEL: LEARNER SERVICES,14.98,A3 CARD
16/08/2016,AMAZON UK MARKETPLACE,CEL: BROCKLEY RISE CENTRE,8.95,ACADEMIC YEARLY WALL PLANNER FOR PREMISES AT BROCKLEY RISE CENTRE
16/08/2016,SHERWEB,ENVIRONMENT ADMINISTRATION,69.96,DATA CHARGES
16/08/2016,AMAZON UK MARKETPLACE,CEL: GROVE PARK CENTRE,4,DISHMATIC WASHING UP BRUSHES FOR ALL 3 CAFES AT ALL.
16/08/2016,WWW.JUSTGLOVES.CO.UK,REABLEMENT TEAM,85.2,ENABLEMENT SUPPLIES
16/08/2016,ALLSTAR BUSINESS SOLUT,FLEET & VEHICLE MAINT:FLEET,353.09,FUEL CARDS FOR FLEET VEHICLES
16/08/2016,HOMEGUARD LOCK SVR,CEMETERIES,28,KEY CUTTING FOR HITHER GREEN CEMETERY PEDESTRIAN GATES AND BOILER CUPBOARD IN LADYWELL PUBLIC TOILET.
16/08/2016,GWR WEBSALES ECOM,LEAVING CARE SUPPORT SERVICES,56.5,TO BRISTOL PARKWAY
16/08/2016,WWW.ALDAUTOMOTIVE.CO.U,FLEET & VEHICLE MAINT:FLEET,"1,294.04",LEASE PAYMENTS FOR FLEET VEHICLE
16/08/2016,SELCO TRADE CENTRE,HANDYPERSON SCHEME,25.34,MATERIALS
16/08/2016,SELCO TRADE CENTRE,HANDYPERSON SCHEME,20.14,MATERIALS
16/08/2016,LONDON & SOUTH EAS,PLANNING DEVELOPMENT CONTROL,50,OYSTER CARD TOP UP 
16/08/2016,LONDON & SOUTH EAS,PLANNING DEVELOPMENT CONTROL,50,OYSTER CARD TOP UP 
16/08/2016,LONDON & SOUTH EAS,PLANNING CONSERVATION,50,OYSTER CARD TOP UP  (CONSERVATION0
16/08/2016,LONDON & SOUTH EAS,LEAVING CARE SUPPORT SERVICES,50,OYSTER TOP UP
16/08/2016,AMAZON UK MARKETPLACE,YOUTH OFFENDING SERVICE,79.71,PLANTS FOR OFFICE
16/08/2016,AMAZON UK MARKETPLACE,HEAD OF ASSET STRATEGY AND DEVELOPMENT,1.99,PPE:  SAFETY SPECTACLES
16/08/2016,AMAZON UK MARKETPLACE,HEAD OF ASSET STRATEGY AND DEVELOPMENT,5.6,PPE: VENITEX -HARD HAT
16/08/2016,LONDON & SOUTH EAS,PLANNING DEVELOPMENT CONTROL,20,PURCHASE OF 4 X OYSTER CARDS
16/08/2016,GWR WEBSALES ECOM,LEAVING CARE SUPPORT SERVICES,-58.3,REFUND OF UNUSED TICKET FROM LONDON TO UTTOEXTER
16/08/2016,ASSOCIATED RECLAIM,FLEET & VEHICLE MAINT:FLEET,132,REMOVAL AND DISPOSAL OF FLEET WORKSHOPS WASTE OIL AND FILTERS
16/08/2016,GWR WEBSALES ECOM,LEAVING CARE SUPPORT SERVICES,6,RTN FROM CATFORD TO SWANLEY 17.8.16 (3.06%)
16/08/2016,GWR WEBSALES ECOM,QUALITY ASSURANCE,21,RTN FROM DARTFORD TO HERNE BAY 19.8.16  (10.7%)
16/08/2016,GWR WEBSALES ECOM,LEAVING CARE SUPPORT SERVICES,13.4,RTN FROM LEWISHAM TO GILLINGHAM ON 18.8.16 (6.83%)
16/08/2016,GWR WEBSALES ECOM,QUALITY ASSURANCE,30.3,RTN FROM LONDON TO BROADSTAIRS ON 23.8.16 (15.44%)
16/08/2016,GWR WEBSALES ECOM,LEAVING CARE SUPPORT SERVICES,63,RTN FROM LONDON TO NOTTINGHAM ON 18.8.16 (32.11%)
16/08/2016,GWR WEBSALES ECOM,LEAVING CARE SUPPORT SERVICES,62.5,RTN FROM LONDON TO RETFORD FOR 23.8.16 (31.86%)
16/08/2016,AMAZON EU,CEL: GRANVILLE PARK CENTRE,7.29,RUBBER GLOVES FOR CAF� ASSISTANTS - ALL CAFES
16/08/2016,AMAZON UK MARKETPLACE,DIRECTOR OF PROG MGMT AND PROPERTY,95.99," DIGITAL CAMERA, CASE & MEMORY CARD."
16/08/2016,AMAZON UK RETAIL AMAZO,CEL: LEARNER SERVICES,20.4,SPRAY MOUNT
16/08/2016,TESCO STORE 2253,REFERRAL AND ASSESSMENTS SUPPORT SERVIC,150,TESCO VOUCHERS.  S17 CASH AND KIND PAYMENTS.
16/08/2016,PP HAPPYDAYSAF,EYSFSP PAYMENTS TO VOLUNTARY ORGS.,754.45,"WEEKS PAID FOR 2, 3, 4, 5, 6 & 7 OF 7 - WEEKLY CHILDCARE DURING SUMMER HOLIDAYS, PAID FROM PRIORITY NURSERY BUDGET, REF@ 0017 - SW"
17/08/2016,OYSTER BUS AUTOTOP,LEAVING CARE SUPPORT SERVICES,20,OYSTER TOP UP
17/08/2016,OYSTER BUS AUTOTOP,FSI - KINGFISHER TEAM (AREA 2),20,TM TRAVEL TO VISITS AND COURT. KINGFISHER TM. 
17/08/2016,DVSA,FLEET & VEHICLE MAINT:FLEET,13,FLEET VEHICLE ROAD FUND LICENCE
17/08/2016,OYSTER AUTOTOPUP,LEAVING CARE SUPPORT SERVICES,20,OYSTER TOP UP 
17/08/2016,OYSTER BUS AUTOTOP,AWLD SPECIALIST SW TEAM,20,OYSTER BUS AUTOTOP
17/08/2016,LONDON & SOUTH EAS,PLANNING CONSERVATION,50,OYSTER CARD TOP UP  ~CONSERVATION
17/08/2016,OYSTER BUS AUTOTOP,LEAVING CARE SUPPORT SERVICES,20,OYSTER TOP UP
17/08/2016,OYSTER BUS AUTOTOP,LEAVING CARE SUPPORT SERVICES,20,OYSTER TOP UP
17/08/2016,AMAZON EU,CEL: BROCKLEY RISE CENTRE,25.9,RONSEAL BLACK WEATHERPROOF EXTERIOR WOOD PAIN - FOR BROCKLEY RISE PREMISES
17/08/2016,GWR WEBSALES ECOM,LEAVING CARE LAC OTHER CARE,209,RTN FOR CONTACT 27.8.16 FROM LOWSTOFT TO LONDON (32.94%)
17/08/2016,GWR WEBSALES ECOM,LEAVING CARE SUPPORT SERVICES,38.3,RTN FROM BECKENHAM JUNCTION TO DOVER AND BUS PLUS ON 19.8.16 (6.04%)
17/08/2016,GWR WEBSALES ECOM,LEAVING CARE SUPPORT SERVICES,31.8,RTN FROM LONDON TO ASHFORD INTERNATIONAL ON 31.8.16 (5.01%)
17/08/2016,GWR WEBSALES ECOM,LEAVING CARE SUPPORT SERVICES,171.1,RTN FROM LONDON TO BRIGHOUSE ON 30.8.16  (26.97%)
17/08/2016,GWR WEBSALES ECOM,SUPPORT  & DEVELOPMENT TEAM 1,32.3,RTN FROM LONDON TO BROADSTAIRS  (FOSTERING) ON 23.8.16
17/08/2016,GWR WEBSALES ECOM,LEAVING CARE SUPPORT SERVICES,14.5,RTN FROM LONDON TO HARLOW ON 5.9.16  (2.29%)
17/08/2016,GWR WEBSALES ECOM,LEAVING CARE LAC OTHER CARE,109.1,RTN FROM LONDON TO LEEDS ON 23.9.16 FOR CONTACT (17.2%)
17/08/2016,GWR WEBSALES ECOM,LEAVING CARE LAC OTHER CARE,48.5,RTN FROM SWINDON TO CATFORD ON 24.9.16 FOR CONTACT (7.65%)
17/08/2016,AMAZON UK MARKETPLACE,ADULT SERVICES BUSINESS SUPPORT,49.77,SPECIALLY ADAPTED KEYBOARD FOR MEMBER OF STAFF
17/08/2016,OYSTER BUS AUTOTOP,ADULT SERVICES BUSINESS SUPPORT,20,STAFF TRAVEL
17/08/2016,OYSTER BUS AUTOTOP,ADULT SERVICES BUSINESS SUPPORT,20,STAFF TRAVEL
17/08/2016,GWR WEBSALES ECOM,LEAVING CARE LAC OTHER CARE,12.1,TRAVEL CARD FROM HITHER GREEN TO BEXLEY FOR CONTACT ON 3.9.16 (1.91%)
18/08/2016,GWR WEBSALES ECOM,QUALITY ASSURANCE,28.8,IRO TRAVEL TO LAC REVIEW ON 24.8.16. GWR JOURNEY: 1 CROYDON STATIONS TO SHEERNESS ON SEA @ 28.80 OFF-PEAK DAY R 28.80 (1 @ 28.80)
18/08/2016,DVLA VEHICLE TAX,FLEET & VEHICLE MAINT:FLEET,167.5,FLEET VEHICLE ROAD FUND LICENCE
18/08/2016,DVLA VEHICLE TAX,FLEET & VEHICLE MAINT:FLEET,167.5,FLEET VEHICLE ROAD FUND LICENCE
18/08/2016,DVLA VEHICLE TAX,FLEET & VEHICLE MAINT:FLEET,142.5,FLEET VEHICLE ROAD FUND LICENCE
18/08/2016,DVLA VEHICLE TAX,FLEET & VEHICLE MAINT:FLEET,222.5,FLEET VEHICLE ROAD FUND LICENCE
18/08/2016,DVLA VEHICLE TAX,FLEET & VEHICLE MAINT:FLEET,232.5,FLEET VEHICLE ROAD FUND LICENCE
18/08/2016,DVLA VEHICLE TAX,FLEET & VEHICLE MAINT:FLEET,142.5,FLEET VEHICLE ROAD FUND LICENCE
18/08/2016,DVLA VEHICLE TAX,FLEET & VEHICLE MAINT:FLEET,232.5,FLEET VEHICLE ROAD FUND LICENCE
18/08/2016,DVLA VEHICLE TAX,FLEET & VEHICLE MAINT:FLEET,222.5,FLEET VEHICLE ROAD FUND LICENCE
18/08/2016,DVLA VEHICLE TAX,FLEET & VEHICLE MAINT:FLEET,222.5,FLEET VEHICLE ROAD FUND LICENCE
18/08/2016,DVLA VEHICLE TAX,FLEET & VEHICLE MAINT:FLEET,232.5,FLEET VEHICLE ROAD FUND LICENCE
18/08/2016,WWW RALPHLAUREN CO UK,ADULT SERVICES BUSINESS SUPPORT,-109,ITEM PURCHASED IN ERROR - THIS IS A REFUND
18/08/2016,CATFORD STATION SST,FSI - GOLDSMITHS TEAM (AREA 1),50,SW TRAVEL TO VISITS AND COURT. TM.
18/08/2016,GWR WEBSALES ECOM,FOSTERING PLACEMENTS,73,LCSB.  GWR TKT .  RE FAMILY TRAVEL TO LEEDS.
18/08/2016,CATFORD STATION SST,FSI - LAUNCELOT TEAM (AREA 3),50,SW TRAVEL TO VISITS AND COURT. LAUNCELOT TM. 
18/08/2016,CATFORD STATION SST,FSI - KINGFISHER TEAM (AREA 2),50,SW TRAVEL TO VISITS AND COURT. MAYOW TM. 
18/08/2016,GWR WEBSALES ECOM,FSI - GOLDSMITHS TEAM (AREA 1),101,VISIT TO LCS.. LONDON TO NEATH.  REFUND APPLIED FOR.
18/08/2016,HOMEGUARD LOCK SVR,CEMETERIES,435.6,OUTSTANDING INVOICES X2 (REPLACING CHUBB AND LOCK ON CREMATION GARDENERS SHED & BROCKLEY LODGE FRONT DOOR ENTRANCE)
18/08/2016,OYSTER BUS AUTOTOP,STREET MARKETS MANAGEMENT & ADMIN.,20,OYSTER CARD TOP UP FOR MARKET OFFICER FOR TRAVEL BETWEEN MARKETS
18/08/2016,OYSTER BUS AUTOTOP,CEL: TEXTILE & FLORAL DESIGN,20,OYSTER CARD TOP UP 
18/08/2016,OYSTER BUS AUTOTOP,LEAVING CARE SUPPORT SERVICES,20,OYSTER TOP UP
18/08/2016,OYSTER AUTOTOPUP,RECRUITMENT & ASSESSMENT TEAM,20,OYSTER TOP UP
18/08/2016,OYSTER BUS AUTOTOP,RECRUITMENT & ASSESSMENT TEAM,20,OYSTER TOP UP
18/08/2016,OYSTER BUS AUTOTOP,LEAVING CARE SUPPORT SERVICES,20,OYSTER TOP UP
18/08/2016,OYSTER BUS AUTOTOP,LEAVING CARE SUPPORT SERVICES,20,OYSTER TOP UP
18/08/2016,OYSTER AUTOTOPUP,LEAVING CARE SUPPORT SERVICES,20,OYSTER TOP UP
18/08/2016,AMAZON UK MARKETPLACE,HEAD OF ASSET STRATEGY AND DEVELOPMENT,31,PPE: LADIES SAFETY BOOTS - SIZE 6
18/08/2016,ALBERT 0644,YOUNG MAYOR,21.58,REFRESHMENTS FOR YOUNG ADVISORS AS PART OF AN EUROPEAN VISIT
18/08/2016,GRO INFLIGHT SHOP,YOUNG MAYOR,12.9,REFRESHMENTS FOR YOUNG ADVISORS AS PART OF EUROPEAN EXCHANGE VISIT
18/08/2016,GRO INFLIGHT SHOP,YOUNG MAYOR,29.8,REFRESHMENTS FOR YOUNG ADVISORS AS PART OF EUROPEAN EXCHANGE VISIT
18/08/2016,ALBERT 0644,YOUNG MAYOR,17.38,REFRESHMENTS FOR YOUNG PEOPLE AS PART OF EUROPEAN VISIT
18/08/2016,OYSTER AUTOTOPUP,FSI - MERIDIAN TEAM (AREA 2),20,SW TRAVEL TO VISITS AND COURT. MERIDIAN TM. 
18/08/2016,OYSTER BUS AUTOTOP,ADULT SERVICES BUSINESS SUPPORT,20,STAFF TRAVEL
18/08/2016,OYSTER BUS AUTOTOP,ADULT SERVICES BUSINESS SUPPORT,20,STAFF TRAVEL
18/08/2016,OYSTER BUS AUTOTOP,ADULT SERVICES BUSINESS SUPPORT,20,STAFF TRAVEL
18/08/2016,OYSTER BUS AUTOTOP,ADULT SERVICES BUSINESS SUPPORT,20,STAFF TRAVEL
18/08/2016,OYSTER BUS AUTOTOP,ADULT SERVICES BUSINESS SUPPORT,20,STAFF TRAVEL
18/08/2016,OYSTER BUS AUTOTOP,LEAVING CARE SUPPORT SERVICES,20,OYSTER
18/08/2016,BESTWAY WHOLESALE,YS SOUTH WEST (AREA 4),38.81,SUMMER NIGHT LIGHT STUFF FOR WP
18/08/2016,AMAZON UK RETAIL AMAZO,CEL: TEXTILE & FLORAL DESIGN,68.83,TAPE DISPENSER
18/08/2016,TAXIPAY TAXI FARE,YOUNG MAYOR,141.75,TAXI FOR STAFF TO GET TO AIRPORT IN TIME AS NO OTHER TRANSPORT AVAILABLE AS PART OF EUROPEAN EXCHANGE PROGRAMME
18/08/2016,OYSTER BUS AUTOTOP,HOME IMPROVEMENT GRANTS & STAYING PUT S,20,TRANSPORT
18/08/2016,WWW.TOOLSTATION.COM,CEMETERIES,40.89,"WATER HOSES X4 FOR HITHER GREEN AND GROVE PARK CEMETERY, BAGS OF ASSORTED ATTACHMENTS X6"
19/08/2016,OYSTER BUS AUTOTOP,LEAVING CARE SUPPORT SERVICES,20,OYSTER TOP UP
19/08/2016,AMAZON UK MARKETPLACE,LIBS: LIBRARIES OPERATIONAL DEVELOPMENT,2.81,AMAZON ORDER NOT AVAILABLE THROUGH NORMAL SUPPLIERS
19/08/2016,OYSTER BUS AUTOTOP,FSI - LAUNCELOT TEAM (AREA 3),40,AUTO-TOP UP OYSTER - SW
19/08/2016,GWR WEBSALES ECOM,LEAVING CARE LAC OTHER CARE,22.4,CONTACT 22.8.16 - LONDON TO HERNE BAY
19/08/2016,FAST KEY SERVICES LIMI,CEL: GROVE PARK CENTRE,6.76,COPY SET OF KEYS FOR GROVE PARK CENTRE
19/08/2016,WWW.DVLA.GOV.UK,FLEET & VEHICLE MAINT:FLEET,232.5,FLEET VEHICLE ROAD FUND LICENCE
19/08/2016,WWW.DVLA.GOV.UK,FLEET & VEHICLE MAINT:FLEET,232.5,FLEET VEHICLE ROAD FUND LICENCE
19/08/2016,WWW.DVLA.GOV.UK,FLEET & VEHICLE MAINT:FLEET,232.5,FLEET VEHICLE ROAD FUND LICENCE
19/08/2016,WWW.VIKING-DIRECT.CO.U,CEL: GRANVILLE PARK CENTRE,16.18,HAND SOAP FOR GRANVILLE PARK PREMISES
19/08/2016,GWR WEBSALES ECOM,FSI - MERIDIAN TEAM (AREA 2),82.8,LCS TRAVEL TO WALES PEMBROKE DOCK FOR ASSESSMENT.  GWR TKT
19/08/2016,GWR WEBSALES ECOM,FS&I FOSTERING,32,LCS .  TRAVEL TO LAC VISIT FOR FAMILY MEMBERS IN SEAFORD ON 22.8.16.  GWR TKT
19/08/2016,GWR WEBSALES ECOM,LEAVING CARE SUPPORT SERVICES,52.2,LCS. GWR TKT   SW CLA TM 4. TRAVEL TO NORWICH FOR RISK MANAGEMENT MTG ON 23.8.16.
19/08/2016,HOMECARE D.I.Y LEE LTD,HANDYPERSON SCHEME,10.45,MATERIALS
19/08/2016,SELCO TRADE CENTRE,HANDYPERSON SCHEME,47.3,MATERIALS
19/08/2016,LEKARNA PALLADIUM 1,YOUNG MAYOR,14.59,MEDICATION/CREAM FROM PHARMACY FOR YOUNG ADVISOR WHILE TAKING PART IN EUROPEAN EXCHANGE VISIT
19/08/2016,SAM 99P CATFORD,YS COMMUNITY & YOUTH SERVICE MANAGEMENT,14.42,MYSTERY SHOPPERS - FOOD FOR EVENT
19/08/2016,ARGOS RETAIL GROUP,YS COMMUNITY & YOUTH SERVICE MANAGEMENT,14.99,MYSTERY SHOPPERS GAME - TWISTER
19/08/2016,TESCO STORE 2253,YS COMMUNITY & YOUTH SERVICE MANAGEMENT,17.08,MYSTERY SHOPPING CELEBRATION FOOD/REFRESHMENTS
19/08/2016,NATIONAL EXPRESS LIMIT,FS&I OTHER CARE,46.2,NATIONAL EXPRESS.  46.20 LONDON TO CAMBRIDGE ON 20.8.16 RE COAD.
19/08/2016,OYSTER BUS AUTOTOP,AWLD SPECIALIST SW TEAM,20,OYSTER BUS AUTOTOP
19/08/2016,OYSTER AUTOTOPUP,LEAVING CARE SUPPORT SERVICES,20,OYSTER POOL
19/08/2016,OYSTER BUS AUTOTOP,LEAVING CARE SUPPORT SERVICES,20,OYSTER TOP UP
19/08/2016,AMAZON UK MARKETPLACE,CEL: GROVE PARK CENTRE,19.72,PAINT BRUSHES/SANDPAPER/WIRE WOOL FOR GROVE PARK PREMISES
19/08/2016,GLS EDUCATIONAL,CEL: BROCKLEY RISE CENTRE,105.55,PAPER HAND TOWELS FOR BROCKLEY RISE PREMISES
19/08/2016,GLS EDUCATIONAL,CEL: GRANVILLE PARK CENTRE,79.16,PAPER HAND TOWELS FOR GRANVILLE PARK CENTRE PREMISES
19/08/2016,AMAZON UK MARKETPLACE,COMMUNITY SUPPORT TEAM,30.16,PLX EAR CUSHION SUPRA
19/08/2016,ALBERT 0644,YOUNG MAYOR,24.78,REFRESHMENTS FOR YOUNG ADVISORS AS PART OF EUROPEAN VISIT
19/08/2016,GWR WEBSALES ECOM,LEAVING CARE LAC OTHER CARE,38.6,RTN FOR SYDENHAM TO DOVER INCLD BUSPLUS FOR PARENT ON 19.9.16 (12.86%)
19/08/2016,GWR WEBSALES ECOM,QUALITY ASSURANCE,31.1,RTN FROM DARTFORD TO DEAL ON 24.8.16  (48.07%)
19/08/2016,GWR WEBSALES ECOM,LEAVING CARE SUPPORT SERVICES,55.8,RTN FROM LONDON TO ASHFORD INTERNATIONAL 30.8.16 (18.59%)
19/08/2016,GWR WEBSALES ECOM,LEAVING CARE LAC OTHER CARE,171.3,RTN FROM LONDON TO BIRMINGHAM ON 29.8.16 FOR CONTACT (57.08%)
19/08/2016,GWR WEBSALES ECOM,RECRUITMENT & ASSESSMENT TEAM,101.4,RTN FROM LONDON TO PENRITH ON 20.8.16 FOR RETURN OF CHILDREN STRANDED IN CAMP
19/08/2016,GWR WEBSALES ECOM,LEAVING CARE LAC OTHER CARE,33.6,RTN FROM SOUTH BERMONDSEY TO ASHFORD INTERNATIONAL ON 24.8.16 FOR CONTACT (51.93%)
19/08/2016,GWR WEBSALES ECOM,LEAVING CARE LAC OTHER CARE,34.4,SPRTN FROM BROADSTAIRS TO LONDON FOR CONTACT 30.8.16 (11.46%)
19/08/2016,LEKARNA PALLADIUM 1,YOUNG MAYOR,12.26,SUNCREAM FOR GROUP AS PART OF EUROPEAN VISIT
19/08/2016,OYSTER AUTOTOPUP,FSI - PENDRAGON TEAM (AREA 3),20,SW TRAVEL TO VISITS 
19/08/2016,LEARNDIRECT,HSG BENEFIT ADMIN,120,TRAINING COURSE
20/08/2016,OYSTER AUTOTOPUP,LEAVING CARE SUPPORT SERVICES,20,OYSTER TOP UP
20/08/2016,OYSTER BUS AUTOTOP,AWLD SPECIALIST SW TEAM,20,OYSTER BUS AUTOTOP
20/08/2016,OYSTER BUS AUTOTOP,ADULT SERVICES BUSINESS SUPPORT,20,STAFF TRAVEL
20/08/2016,OYSTER AUTOTOPUP,FSI - MERIDIAN TEAM (AREA 2),20,SW TRAVEL TO VISITS 
20/08/2016,OYSTER AUTOTOPUP,FSI - PENDRAGON TEAM (AREA 3),20,TM TRAVEL TO COURT
21/08/2016,OYSTER BUS AUTOTOP,LEAVING CARE SUPPORT SERVICES,20,OYSTER TOP UP
21/08/2016,OYSTER BUS AUTOTOP,HOSTELS: GENERAL,20,OYSTER CARD TOP UP 
21/08/2016,OYSTER BUS AUTOTOP,LEAVING CARE SUPPORT SERVICES,20,OYSTER TOP UP
21/08/2016,ALBERT 0644,YOUNG MAYOR,7.49,REFRESHMENTS FOR YOUNG ADVISORS AS PART OF A EUROPEAN VISIT
21/08/2016,OYSTER BUS AUTOTOP,ADULT SERVICES BUSINESS SUPPORT,20,STAFF TRAVEL
21/08/2016,OYSTER BUS AUTOTOP,ADULT SERVICES BUSINESS SUPPORT,20,STAFF TRAVEL
21/08/2016,OYSTER BUS AUTOTOP,ADULT SERVICES BUSINESS SUPPORT,20,STAFF TRAVEL
21/08/2016,OYSTER BUS AUTOTOP,FSI - RIVERVIEW TEAM (AREA 4),20,SW TRAVEL TO VISITS 
22/08/2016,HMCOURTS-SERVICE.G,C.TAX MANAGEMENT,"3,081.00",1027 SUMMONSES @3
22/08/2016,TRAVELODGE,FSI - MERIDIAN TEAM (AREA 2),161,ACCOM IN PEMBROKE DOCK RE ASSESSMENT FROM 6 - 9 SEPT 16.
22/08/2016,GWR WEBSALES ECOM,LEAVING CARE SUPPORT SERVICES,18.6,TO SOUTHEND ON SEA 
22/08/2016,NATIONALITY DIRECTORAT,LEAVING CARE LAC OTHER CARE,749,COST OF CITIZENSHIP APPLICATION FOR CD
22/08/2016,SMEBUSINESSCHECK,MISC INDUSTRIAL & COMMERCIAL PROPS,21.59,EXPERIAN BUSINESS CHECK.
22/08/2016,GWR WEBSALES ECOM,ADOPTION TEAM 1,11.6,TO EDENBRIDGE TO SEE ADOPTERS
22/08/2016,GWR WEBSALES ECOM,ADOPTION TEAM 1,23.2,TO LONGFIELD
22/08/2016,NEOPHARM LEKARNA KOMUN,YOUNG MAYOR,15.09,MEDICATION FOR YOUNG ADVISORS AS PART OF EUROPEAN EXCHANGE
22/08/2016,SACKTRUCKSDIRECT.C,POSTAL FRANKING SERVICES,30,METAL HUB PUNCTURE PROOF WHEELS ( SET OF 2)
22/08/2016,AMAZON UK MARKETPLACE,CEL: GROVE PARK CENTRE,13.98,METAL PAINT FOR PREMISES
22/08/2016,TESCO STORES 5729,YS COMMUNITY & YOUTH SERVICE MANAGEMENT,5.39,MYSTERY SHOPPERS - FOOD
22/08/2016,PASS A PIZZA LTD,YS COMMUNITY & YOUTH SERVICE MANAGEMENT,65.17,MYSTERY SHOPPERS PIZZAS
22/08/2016,PIRTEK GREENWICH,CEMETERIES,281.48,"OUTSTANDING INVOICES - REMEDIAL REPAIRS TO GROVE PARK 360 DIGGER.
GPC CARD REACHED LIMIT AT FIRST ORDER RESULTING IN SUPPLIER TAKING LEGAL ACTION TO RESOLVE DEBT."
22/08/2016,ALBERT 0644,YOUNG MAYOR,20.85,REFRESHMENTS FOR YOUNG ADVISORS AS PART OF EUROPEAN VISIT
22/08/2016,EURO CAR PARTS LTD,FLEET & VEHICLE MAINT:FLEET,49.99,SPARE PARTS FOR FLEET VEHICLES
22/08/2016,LONDON & SOUTH EAS,FAMILY SUPPORT & INTERVENTION SUPP SERV,50,SW TRAVEL TO VISITS 
22/08/2016,LONDON BORO OF REDBRI,FLEET & VEHICLE MAINT:FLEET,91.35,TRANSPORT MANAGERS COURSE
22/08/2016,LONDON & SOUTH EAS,LEWISHAM LINKLINE,24.2,TRAVEL FOR 2 STAFF MEMBERS AT MERTON COUNCIL
22/08/2016,GRO HM PASSPORT OFFICE,LEAVING CARE LAC OTHER CARE,23.4,BIRTH CERTIFICATE
22/08/2016,YOGI NEWS,FSI - RIVERVIEW TEAM (AREA 4),101,X2 SW OYSTER CARD TOP UPS. (THE TRAIN STATION MACHINE OUT OF ORDER.  BOUGHT AT NEWSAGENTS)
22/08/2016,GWR WEBSALES ECOM,LEAVING CARE SUPPORT SERVICES,52.2,TO NORWICH
23/08/2016,WWW.TOOLSTATION.COM,CEMETERIES,32.34,ADDITIONAL WATER HOSES FOR HITHER GREEN CREMATORIUM
23/08/2016,WWW.TOOLSTATION.COM,CEMETERIES,32.17,ASSORTMENT OF L TYPE BRACKETS FOR INSTALLING BENCHES AT CREMATORIUM AND GROVE PARK CEMETERY.  ASSORTMENT OF SCREWS TO REPAIR SIDE GATE AT GROVE PARK BUNGALOW.
23/08/2016,TALKTALK TELECOM,MULBERRY DAY CENTRE,48.2,BROAD BAND PAYMENT BROAD BAND PAYMENT 
23/08/2016,JEMCA BROMLEY,LEWISHAM LINKLINE,140.74,CAR WHEEL LINER REPLACEMENT
23/08/2016,SCREWFIX DIRECT,LEWISHAM LINKLINE,119.99,DEWALT COMBI DRILL
23/08/2016,AMAZON EU,CIVIC AMENITIES,63.98,EQUIPMENT FOR REUSE AND RECYCLING SITE
23/08/2016,SCREWFIX DIRECT,LEWISHAM LINKLINE,18.62,MASONRY DRILL BITS
23/08/2016,SCREWFIX DIRECT,LEWISHAM LINKLINE,12.44,MASONRY DRILL BITS
23/08/2016,WWW.TOOLSTATION.COM,LEWISHAM LINKLINE,19.69,MASONRY DRILLS
23/08/2016,WICKES   281,HANDYPERSON SCHEME,14.99,MATERIALS
23/08/2016,SELCO TRADE CENTRE,HANDYPERSON SCHEME,12.95,MATERIALS
23/08/2016,OYSTER AUTOSETTLE,AWLD SPECIALIST SW TEAM,60,OYSTER AUTOSETTLE
23/08/2016,OYSTER AUTOSETTLE,AWLD SPECIALIST SW TEAM,20,OYSTER AUTOSETTLE
23/08/2016,OYSTER BUS AUTOTOP,AWLD SPECIALIST SW TEAM,20,OYSTER BUS AUTOTOP
23/08/2016,OYSTER ISSUE WEB,AWLD SPECIALIST SW TEAM,15,OYSTER ISSUE WEB
23/08/2016,OYSTER BUS AUTOTOP,ADOPTION TEAM 1,20,OYSTER TOP UP
23/08/2016,FRANKS,REFERRAL AND ASSESSMENT TEAM 1,200.5,R&A OYSTER CARD TOP UPS.
23/08/2016,LAW SOCIETY FINANC,PRACTICE SUPPORT OFFICE,390.72,RENEWAL OF LEXCEL ACCREDITATION
23/08/2016,GWR WEBSALES ECOM,QUALITY ASSURANCE,6,RTN FROM CATFORD TO SWANLEY ON 31.8.16 (6.15%)
23/08/2016,GWR WEBSALES ECOM,LEAVING CARE SUPPORT SERVICES,6,RTN FROM CATFORD TO SWANLEY ON 24.8.16 (2.35%)
23/08/2016,GWR WEBSALES ECOM,QUALITY ASSURANCE,25.5,RTN FROM DARTFORD TO ASHFORD INTERNATION ON 30.8.16  (26.15%)
23/08/2016,GWR WEBSALES ECOM,DISABLED CHILDRENS SERVICE TEAM 2,13.4,RTN FROM LEWISHAM TO GILLINGHAM ON 1.9.16  (CWCN) (5.25%)
23/08/2016,GWR WEBSALES ECOM,DISABLED CHILDRENS SERVICE TEAM 2,17,RTN FROM LEWISHAM TO GRAVESEND ON THE 31.8.16  (CWCN) (17.44%)
23/08/2016,GWR WEBSALES ECOM,LEAVING CARE SUPPORT SERVICES,24.6,RTN FROM LONDON TO KEARNSNEY KENT ON 26.8.16  (46.86%)
23/08/2016,GWR WEBSALES ECOM,LEAVING CARE SUPPORT SERVICES,20,RTN FROM LONDON TO MAIDSTONE WEST ON 25.8.16  (7.83%)
23/08/2016,GWR WEBSALES ECOM,FSI - GOLDSMITHS TEAM (AREA 1),101,RTN FROM LONDON TO NEATH (FSW) ON 26.8.16 (39.56%)
23/08/2016,GWR WEBSALES ECOM,LEAVING CARE SUPPORT SERVICES,49,RTN FROM LONDON TO SOLIHULL ON 1.9.16  (50.26%)
23/08/2016,GWR WEBSALES ECOM,LEAVING CARE SUPPORT SERVICES,47,RTN FROM LONDON TO WARMINSTER ON 25.8.16 (18.41%)
23/08/2016,GWR WEBSALES ECOM,LEAVING CARE LAC OTHER CARE,27.9,RTN FROM SOUTH BERMONDSEY TO ASHFORD ON 29.8.16 FOR CONTACT (53.14%)
23/08/2016,GWR WEBSALES ECOM,LEAVING CARE LAC OTHER CARE,54.5,RTN FROM STOOD TO MAIDSTONE WEST FOR CONTACT ON 27.8.16 (21.35%)
23/08/2016,GWR WEBSALES ECOM,DISABLED CHILDRENS SERVICE TEAM 2,13.4,RTN LEWISHAM TO GILLINGHAM ON 1.9.16 (CWCN) (5.25%)
23/08/2016,GWR WEBSALES ECOM,FSI - GOLDSMITHS TEAM (AREA 1),31.3,SW TRAVEL TO VISIT IN RAMSGATE. REFUND APPLIED FOR. GWR 
23/08/2016,GWR WEBSALES ECOM,FSI - GOLDSMITHS TEAM (AREA 1),63.6,SW TRAVEL TO SEAFORD. 12.9.16.  GWR 
23/08/2016,SAFETYBOOTSUK,HANDYPERSON SCHEME,114.93,WORK BOOTS
24/08/2016,GWR WEBSALES ECOM,LEAVING CARE SUPPORT SERVICES,177,2 ADULTS AND 2 KIDS FROM LONDON TO BURY METRO LINK ON 30.8.16 (77.23%)
24/08/2016,OYSTER AUTOSETTLE,AWLD SPECIALIST SW TEAM,40,AUTOSETTLE
24/08/2016,AMAZON UK MARKETPLACE,CIVIC AMENITIES,111.75,CARTRIDGES FOR REUSE AND RECYCLING SITE.
24/08/2016,CRANBROOK HOTEL,QUALITY ASSURANCE,47.5,COST OF B&B FOR RH AND BD FROM 24.8-25.816
24/08/2016,HOUSE OR CARPETS,HOSTELS TEAM A,25.5,CURTAIN RAIL FOR VOID UNIT UNIT 4 STANSTEAD ROAD
24/08/2016,AMAZON UK MARKETPLACE,HEAD OF ASSET STRATEGY AND DEVELOPMENT,22.54,DSE: BIG HAND VERTICAL ERGONOMICS OPTICAL MOUSE.
24/08/2016,WWW.DVLA.GOV.UK,FLEET & VEHICLE MAINT:FLEET,232.5,FLEET VEHICLE ROAD FUND LICENCE
24/08/2016,B & Q 1346,HANDYPERSON SCHEME,34,MATERIALS
24/08/2016,B & Q 1346,HANDYPERSON SCHEME,4.84,MATERIALS
24/08/2016,OYSTER AUTOSETTLE,AWLD SPECIALIST SW TEAM,20,OYSTER AUTOPSETTLE
24/08/2016,OYSTER AUTOSETTLE,AWLD SPECIALIST SW TEAM,20,OYSTER AUTOSETTLE
24/08/2016,OYSTER AUTOSETTLE,AWLD SPECIALIST SW TEAM,20,OYSTER AUTOSETTLE
24/08/2016,OYSTER AUTOSETTLE,AWLD SPECIALIST SW TEAM,20,OYSTER AUTOSETTLE
24/08/2016,OYSTER AUTOSETTLE,AWLD SPECIALIST SW TEAM,20,OYSTER AUTOSETTLE
24/08/2016,OYSTER AUTOSETTLE,AWLD SPECIALIST SW TEAM,20,OYSTER AUTOSETTLE
24/08/2016,OYSTER AUTOSETTLE,AWLD SPECIALIST SW TEAM,20,OYSTER AUTOSETTLE
24/08/2016,OYSTER AUTOSETTLE,AWLD SPECIALIST SW TEAM,20,OYSTER AUTOSETTLE
24/08/2016,OYSTER AUTOSETTLE,AWLD SPECIALIST SW TEAM,20,OYSTER AUTOSETTLE
24/08/2016,OYSTER AUTOSETTLE,AWLD SPECIALIST SW TEAM,20,OYSTER AUTOSETTLE
24/08/2016,OYSTER AUTOSETTLE,AWLD SPECIALIST SW TEAM,20,OYSTER AUTOSETTLE
24/08/2016,OYSTER AUTOSETTLE,AWLD SPECIALIST SW TEAM,60,OYSTER AUTOSETTLE
24/08/2016,OYSTER AUTOSETTLE,AWLD SPECIALIST SW TEAM,40,OYSTER AUTOSETTLE
24/08/2016,OYSTER AUTOSETTLE,AWLD SPECIALIST SW TEAM,40,OYSTER AUTOSETTLE
24/08/2016,OYSTER AUTOSETTLE,AWLD SPECIALIST SW TEAM,40,OYSTER AUTOSETTLE
24/08/2016,OYSTER AUTOSETTLE,AWLD SPECIALIST SW TEAM,40,OYSTER AUTOSETTLE
24/08/2016,OYSTER AUTOSETTLE,AWLD SPECIALIST SW TEAM,40,OYSTER AUTOSETTLE
24/08/2016,OYSTER AUTOSETTLE,AWLD SPECIALIST SW TEAM,40,OYSTER AUTOSETTLE
24/08/2016,OYSTER AUTOSETTLE,AWLD SPECIALIST SW TEAM,20,OYSTER AUTOSETTLE
24/08/2016,OYSTER AUTOSETTLE,AWLD SPECIALIST SW TEAM,20,OYSTER AUTOSETTLE
24/08/2016,OYSTER AUTOSETTLE,AWLD SPECIALIST SW TEAM,120,OYSTER AUTOSETTLE
24/08/2016,OYSTER AUTOSETTLE,AWLD SPECIALIST SW TEAM,40,OYSTER AUTOSETTLE
24/08/2016,OYSTER AUTOSETTLE,AWLD SPECIALIST SW TEAM,80,OYSTER AUTOSETTLE
24/08/2016,OYSTER AUTOSETTLE,AWLD SPECIALIST SW TEAM,20,OYSTER AUTOSETTLE
24/08/2016,OYSTER AUTOSETTLE,AWLD SPECIALIST SW TEAM,20,OYSTER AUTOSETTLE
24/08/2016,OYSTER AUTOSETTLE,AWLD SPECIALIST SW TEAM,20,OYSTER AUTOSETTLE
24/08/2016,OYSTER AUTOSETTLE,AWLD SPECIALIST SW TEAM,20,OYSTER AUTOSETTLE
24/08/2016,OYSTER AUTOSETTLE,AWLD SPECIALIST SW TEAM,20,OYSTER AUTOSETTLE
24/08/2016,OYSTER AUTOSETTLE,AWLD SPECIALIST SW TEAM,20,OYSTER AUTOSETTLE
24/08/2016,OYSTER AUTOSETTLE,AWLD SPECIALIST SW TEAM,20,OYSTER AUTOSETTLE
24/08/2016,OYSTER AUTOSETTLE,AWLD SPECIALIST SW TEAM,20,OYSTER AUTOSETTLE
24/08/2016,OYSTER AUTOSETTLE,AWLD SPECIALIST SW TEAM,20,OYSTER AUTOSETTLE
24/08/2016,OYSTER AUTOSETTLE,AWLD SPECIALIST SW TEAM,20,OYSTER AUTOSETTLE
24/08/2016,OYSTER AUTOSETTLE,AWLD SPECIALIST SW TEAM,20,OYSTER AUTOSETTLE
24/08/2016,OYSTER BUS AUTOSET,AWLD SPECIALIST SW TEAM,40,OYSTER BUS AUTOSET
24/08/2016,OYSTER BUS AUTOSET,AWLD SPECIALIST SW TEAM,40,OYSTER BUS AUTOSET
24/08/2016,OYSTER BUS AUTOSET,AWLD SPECIALIST SW TEAM,60,OYSTER BUS AUTOSET
24/08/2016,OYSTER BUS AUTOSET,AWLD SPECIALIST SW TEAM,20,OYSTER BUS AUTOSET
24/08/2016,OYSTER BUS AUTOSET,AWLD SPECIALIST SW TEAM,20,OYSTER BUS AUTOSET
24/08/2016,OYSTER BUS AUTOSET,AWLD SPECIALIST SW TEAM,20,OYSTER BUS AUTOSET
24/08/2016,OYSTER BUS AUTOTOP,AWLD SPECIALIST SW TEAM,20,OYSTER BUS AUTOTOP
24/08/2016,OYSTER BUS AUTOTOP,AWLD SPECIALIST SW TEAM,20,OYSTER BUS AUTOTOP
24/08/2016,OYSTER ISSUE WEB,AWLD SPECIALIST SW TEAM,15,OYSTER ISSUE WEB
24/08/2016,OYSTER ISSUE WEB,AWLD SPECIALIST SW TEAM,15,OYSTER ISSUE WEB
24/08/2016,OYSTER BUS AUTOTOP,LEAVING CARE SUPPORT SERVICES,20,OYSTER TOP UP
24/08/2016,OYSTER AUTOTOPUP,LEAVING CARE SUPPORT SERVICES,20,OYSTER TOP UP
24/08/2016,OYSTER BUS AUTOTOP,LEAVING CARE SUPPORT SERVICES,20,OYSTER TOP UP
24/08/2016,GWR WEBSALES ECOM,QUALITY ASSURANCE,49,RTN FROM EAST CROYDON TO STROUD ON 1.9.16 (33.33%)
24/08/2016,GWR WEBSALES ECOM,QUALITY ASSURANCE,49,RTN FROM EAST CROYDON TO STROUD ON 1.9.16 (33.33%)
24/08/2016,GWR WEBSALES ECOM,ADOPTION TEAM 1,52.2,RTN FROM LONDON TO SELLY OAK ON 26.8.16  (22.77%)
24/08/2016,GWR WEBSALES ECOM,DISABLED CHILDRENS SERVICE TEAM 2,49,RTN FROM SYDENHAM TO STROUD ON 1.9.16 (33.34%)
24/08/2016,OYSTER BUS AUTOTOP,ADULT SERVICES BUSINESS SUPPORT,20,STAFF TRAVEL
24/08/2016,NEW SOUTHERN RAILW,YOUNG MAYOR,10,TRANSPORT FOR YOUNG ADVISORS TO ATTEND EVENT
24/08/2016,NEW SOUTHERN RAILW,YOUNG MAYOR,5,TRANSPORT FOR YOUNG ADVISORS TO RETURN FORM THE AIRPORT AS PART OF EUROPEAN VISIT
24/08/2016,NEW SOUTHERN RAILW,YOUNG MAYOR,10,TRANSPORT FOR YOUNG PEOPLE TO ATTEND EUROPEAN VISIT
24/08/2016,NEW SOUTHERN RAILW,YOUNG MAYOR,10,TRANSPORT FOR YOUNG PEOPLE TO RETURN FROM VISIT
24/08/2016,NEW SOUTHERN RAILW,YOUNG MAYOR,37.7,TRANSPORTS FOR  STAFF FOR EUROPEAN VISIT RETURN FROM AIRPORT
25/08/2016,H.C.SLINGSBY PLC,POSTAL FRANKING SERVICES,23.27,2 X WHEEL BLACK RUBBER TYRE.
25/08/2016,GUEST MEDICAL LTD,LADYWELL DEMENTIA SERVICES,168,ANTIBACTERIA HAND WASH 'TOTTLES' FOR STAFF PROTECTION (H&S REQUIREMENT)
25/08/2016,CONGESTION CHARGE,MEMBERS' ALLOWANCES,10.5,CONGESTION CHARGE FOR THE MAYORAL CAR ENTERING THE ZONE
25/08/2016,TRAVELODGE,BED & BREAKFAST,49,EMERGENCY NIGHTLY PAID ACCOMMODATION BOOKING FEE FOR HOMELESS HOUSEHOLD
25/08/2016,SAINSBURYS SACAT 0031,YS SOUTH WEST (AREA 4),12,FOOD FOR RS DURING SUMMER
25/08/2016,WWW.ICO.GOV.UK,DIGITAL TRANSFORMATION,35,ICO REGISTRATION FOR COUNCILLOR
25/08/2016,WF SENATE LEWISHAM,HANDYPERSON SCHEME,18.68,MATERIALS
25/08/2016,ARGOS RETAIL GROUP,CREMATORIA ADMIN,84.97,MICROWAVE AND TOASTER FOR HITHER GREEN STAFF MESS ROOM
25/08/2016,OYSTER AUTOTOPUP,FSI - LAUNCELOT TEAM (AREA 3),20, SW OYSTER TOP UP.
25/08/2016,OYSTER AUTOTOPUP,SUPPORT & DEVELOPMENT TEAM 2,20,OYSTER TOP UP
25/08/2016,OYSTER AUTOTOPUP,ADOPTION TEAM 1,20,OYSTER TOP UP
25/08/2016,OYSTER AUTOTOPUP,ADOPTION TEAM 1,20,OYSTER TOP UP
25/08/2016,KENT COUNTY SUPPLIES,MULBERRY DAY CENTRE,120.72,PAPER ORDER  NOT PAID LAST YEAR FOR LEEMORE CENTRE
25/08/2016,AMAZON UK MARKETPLACE,HEAD OF ASSET STRATEGY AND DEVELOPMENT,11.99,PPE: GRIFITI SLIM WRIST PAD 17 WITH BLACK WRIST REST.
25/08/2016,GRO INFLIGHT SHOP,YOUNG MAYOR,5.4,REFRESHMENTS FOR YOUNG ADVISORS AS PART OF EUROPEAN VISIT
25/08/2016,GRO INFLIGHT SHOP,YOUNG MAYOR,25.8,REFRESHMENTS FOR YOUNG ADVISORS AS PART OF EUROPEAN VISIT
25/08/2016,GRO INFLIGHT SHOP,YOUNG MAYOR,21.7,REFRESHMENTS FOR YOUNG ADVISORS AS PART OF THE EUROPEAN VISIT
25/08/2016,MOBILE INSTALLATION SO,FLEET & VEHICLE MAINT:FLEET,359.04,ROOF RACKS FOR FLEET VEHICLES
25/08/2016,PROTECTAVAN,FLEET & VEHICLE MAINT:FLEET,660,ROOF RACKS FOR FLEET VEHICLES
25/08/2016,NATIONAL EXPRESS LIMIT,FOSTERING PLACEMENTS,33.4,RTN COAH TICKET FROM LONDON TO CAMBRIDGE ON 3.9.16 FOR CONTACT
25/08/2016,GWR WEBSALES ECOM,LEAVING CARE SUPPORT SERVICES,22.4,RTN FROM GROVE PARK TO CROWHURST ON 31.8.16 
25/08/2016,GWR WEBSALES ECOM,LEAVING CARE SUPPORT SERVICES,6,RTN FROM STROUD TO MAIDSTONE 27.8.16
25/08/2016,OYSTER BUS AUTOTOP,ADULT SERVICES BUSINESS SUPPORT,20,STAFF TRAVEL
25/08/2016,OYSTER BUS AUTOTOP,ADULT SERVICES BUSINESS SUPPORT,20,STAFF TRAVEL
25/08/2016,OYSTER AUTOTOPUP,HEAD OF ASSET STRATEGY AND DEVELOPMENT,20,TOP UP OYSTER CARD.
25/08/2016,OYSTER BUS AUTOTOP,HOME IMPROVEMENT GRANTS & STAYING PUT S,40,TRANSPORT
25/08/2016,AMAZON UK MARKETPLACE,LADYWELL DEMENTIA SERVICES,95.36,WET WIPES FOR USE WITH CLIENTS
26/08/2016,GWR WEBSALES ECOM,LEAVING CARE LAC OTHER CARE,129.15,"1 ADULT , 1 CHILD FOR CONTACT WITH BOYFRIEND IN MANCHESTER"
26/08/2016,VIRGINTRAINS.CO.UK,LEAVING CARE LAC OTHER CARE,260.75,2 ADULTS AND 3 CHILDREN TO LONDON TO SHEFFIELD FOR CONTACT 
26/08/2016,GWR WEBSALES ECOM,LEAVING CARE LAC OTHER CARE,89.8,4 ADULTS TO MARGATE TO MARGATE - CONTACT
26/08/2016,AMAZON UK MARKETPLACE,LIBS: LIBRARIES OPERATIONAL DEVELOPMENT,7.64,AMAZON ORDER NOT AVAILABLE THROUGH NORMAL SUPPLIERS
26/08/2016,LONDON & SOUTH EAS,LEAVING CARE SUPPORT SERVICES,104.5, TO EXETER IN DEVON
26/08/2016,OYSTER BUS AUTOSET,LEAVING CARE SUPPORT SERVICES,20,AUTO SETTLE 
26/08/2016,OYSTER AUTOSETTLE,LEAVING CARE SUPPORT SERVICES,20,AUTO SETTLE 
26/08/2016,OYSTER AUTOSETTLE,LEAVING CARE SUPPORT SERVICES,20,AUTO SETTLE 
26/08/2016,OYSTER AUTOSETTLE,LEAVING CARE SUPPORT SERVICES,20,AUTO SETTLE 
26/08/2016,OYSTER BUS AUTOSET,LEAVING CARE SUPPORT SERVICES,20,AUTO SETTLE 
26/08/2016,OYSTER AUTOSETTLE,LEAVING CARE SUPPORT SERVICES,20,AUTO SETTLE 
26/08/2016,NATIONAL EXPRESS LIMIT,FOSTERING PLACEMENTS,20.9,CHANGE OF COACH FOR CONTACT LONDON TO CAMBRIDGE ON 3.9.16
26/08/2016,NATIONAL EXPRESS LIMIT,FOSTERING PLACEMENTS,5,COST OF CHANGING COACH FROM LONDON TO CAMBRIDGE
26/08/2016,WWW.MOVEMENT2.CO.UK,AWLD SPECIALIST SW TEAM,79.42,ETAC BODY SUPPORT WEDGE
26/08/2016,LONDON & SOUTH EAS,LEAVING CARE SUPPORT SERVICES,185.6,EWRROR BY BOOKING CLERK - REFUND CLAIMED
26/08/2016,WWW.ERS-ONLINE.CO.UK,LS: LEISURE MGT CLIENT SERVICES,70.84,FREE SWIM BATTERY FOR FH POOLS
26/08/2016,LONDON & SOUTH EAS,LEAVING CARE SUPPORT SERVICES,104.5,TO BARNSTAPLE
26/08/2016,LONDON & SOUTH EAS,LEAVING CARE SUPPORT SERVICES,41.8,TO WARMINSTER STAT VISIT
26/08/2016,PAYPAL  FIVERR COM,SAFEGUARDING ADULT BOARD TEAM,16.4,LSAB LEAFLET
26/08/2016,AMAZON UK MARKETPLACE,YOUTH OFFENDING SERVICE,5.71,MAP
26/08/2016,LONDON & SOUTH EAS,LEAVING CARE SUPPORT SERVICES,185.6,"LCS SOCIAL WORKER TO A STAT VISIT WITH A YP IN ST ANNES, NORTH WEST COAST OF ENGLAND - RECEIPT AVAILABLE"
26/08/2016,SELCO TRADE CENTRE,HANDYPERSON SCHEME,15.74,MATERIALS
26/08/2016,CITY ELECTRICAL,HANDYPERSON SCHEME,16.86,MATERIALS
26/08/2016,LONDON & SOUTH EAS,LEAVING CARE SUPPORT SERVICES,6.1,LEWISHAM TO GREENHITHE
26/08/2016,TRAVELODGE,LEAVING CARE LAC OTHER CARE,143,ONE NIGHT'S STAY TRAVEL LODGE CRYSTAL PALACE YP AND CARER APPROVED
26/08/2016,OYSTER BUS AUTOTOP,AWLD SPECIALIST SW TEAM,20,OYSTER BUS AUTOTOP
26/08/2016,OYSTER BUS AUTOTOP,HOSTELS: GENERAL,20,OYSTER CARD TOP UP 
26/08/2016,FRANKS,LEAVING CARE LAC OTHER CARE,15.5,OYSTER TOP UP YP TO GET TO COURT
26/08/2016,WWW.TOTALWORKWEAR.CO.U,HEAD OF ASSET STRATEGY AND DEVELOPMENT,63.84,PPE: HIGH VIZ JACKET 5 IN 1 X LARGE.
26/08/2016,LONDON & SOUTH EAS,LEAVING CARE SUPPORT SERVICES,-185.6,REFUND ON CANCELLED JOURNEY FOR SW
26/08/2016,AMAZON UK MARKETPLACE,DIRECTOR OF PROG MGMT AND PROPERTY,79.94,SONY DIGITAL CAMERA (HIGHWAY INSPECTOR)
26/08/2016,OYSTER BUS AUTOTOP,ADULT SERVICES BUSINESS SUPPORT,20,STAFF TRAVEL
26/08/2016,OYSTER BUS AUTOTOP,ADULT SERVICES BUSINESS SUPPORT,20,STAFF TRAVEL
26/08/2016,OYSTER BUS AUTOTOP,ADULT SERVICES BUSINESS SUPPORT,20,STAFF TRAVEL
26/08/2016,OYSTER BUS AUTOTOP,ADULT SERVICES BUSINESS SUPPORT,20,STAFF TRAVEL
26/08/2016,OYSTER BUS AUTOTOP,ADULT SERVICES BUSINESS SUPPORT,20,STAFF TRAVEL
26/08/2016,AMAZON UK MARKETPLACE,YOUTH OFFENDING SERVICE,3.26,STICKERS FOR MAP
26/08/2016,LONDON & SOUTH EAS,LEAVING CARE LAC OTHER CARE,156.4,CONTACT SEVEN KINGS TO TAUNTON GROUP SAVE  1 ADULT 2 CHILDS
26/08/2016,GRO HM PASSPORT OFFICE,LEAVING CARE LAC OTHER CARE,46.8,BIRTH CERTIFICATE X 2
26/08/2016,OYSTER BUS AUTOTOP,FSI - PENDRAGON TEAM (AREA 3),20,TM TRAVEL TO COURT 
26/08/2016,OYSTER BUS AUTOTOP,HOME IMPROVEMENT GRANTS & STAYING PUT S,20,TRANSPORT
26/08/2016,LONDON & SOUTH EAS,LEAVING CARE LAC OTHER CARE,12.1,TRAVEL CARD FOR FAMILY CONTACT
27/08/2016,AMAZON EU,DIRECTOR OF PROG MGMT AND PROPERTY,13.63,"2X PENTEL P209 AUTOMATIC PENCILS.
LEAD OFFICER: KISHORE VORA"
27/08/2016,OYSTER BUS AUTOTOP,LEAVING CARE SUPPORT SERVICES,20,OYSTER BUS AUTOTOP
27/08/2016,OYSTER AUTOTOPUP,AWLD SPECIALIST SW TEAM,20,OYSTER AUTOTOPUP
27/08/2016,OYSTER BUS AUTOTOP,AWLD SPECIALIST SW TEAM,20,OYSTER BUS AUTOTOP
27/08/2016,OYSTER BUS AUTOTOP,AWLD SPECIALIST SW TEAM,20,OYSTER BUS AUTOTOP
27/08/2016,OYSTER BUS AUTOTOP,LEAVING CARE SUPPORT SERVICES,20,OYSTER TOP UP
27/08/2016,OYSTER BUS AUTOTOP,RECRUITMENT & ASSESSMENT TEAM,20,OYSTER TOP UP
27/08/2016,OYSTER BUS AUTOTOP,RECRUITMENT & ASSESSMENT TEAM,20,OYSTER TOP UP
27/08/2016,OYSTER AUTOTOPUP,ADOPTION TEAM 1,20,OYSTER TOP UP
27/08/2016,OYSTER BUS AUTOTOP,"CEL: DESIGN, MEDIA & FOOD",20,OYSTERCARD TOPUP
27/08/2016,PAYPAL  SEWINGDIREC,CEL: MARKETING,50,SEWING DIRECTORY LISTING
27/08/2016,OYSTER BUS AUTOTOP,ADULT SERVICES BUSINESS SUPPORT,20,STAFF TRAVEL
27/08/2016,OYSTER BUS AUTOTOP,ADULT SERVICES BUSINESS SUPPORT,20,STAFF TRAVEL
27/08/2016,OYSTER BUS AUTOTOP,ADULT SERVICES BUSINESS SUPPORT,20,STAFF TRAVEL
27/08/2016,OYSTER AUTOTOPUP,FAMILY SUPPORT & INTERVENTION SUPP SERV,20,SW 
27/08/2016,OYSTER BUS AUTOTOP,FSI - MERIDIAN TEAM (AREA 2),20,SW TRAVEL TO VISITS
27/08/2016,OYSTER AUTOTOPUP,HEAD OF ASSET STRATEGY AND DEVELOPMENT,20,TOP UP OYSTER CARD.
28/08/2016,OYSTER AUTOTOPUP,LEAVING CARE SUPPORT SERVICES,20,OYSTER TOP UP
28/08/2016,ADOBE  DW CREATIVE CLD,ENVIRONMENT ADMINISTRATION,26.68,DATA CHARGES
28/08/2016,OYSTER BUS AUTOTOP,STREET MARKETS MANAGEMENT & ADMIN.,20,OYSTER CARD TOP UP FOR MARKET OFFICER FOR TRAVEL BETWEEN MARKETS
28/08/2016,OYSTER BUS AUTOTOP,ADOPTION TEAM 1,20,OYSTER TOP UP
28/08/2016,OYSTER BUS AUTOTOP,ADULT SERVICES BUSINESS SUPPORT,20,STAFF TRAVEL
28/08/2016,OYSTER BUS AUTOTOP,FSI - RIVERVIEW TEAM (AREA 4),20,SW TRAVEL TO VISITS AND COURT.
28/08/2016,OYSTER BUS AUTOTOP,HEAD OF ASSET STRATEGY AND DEVELOPMENT,20,TOP UP OYSTER CARD.
29/08/2016,OYSTER BUS AUTOTOP,ADOPTION TEAM 1,20,OYSTER TOP UP
29/08/2016,OYSTER BUS AUTOTOP,ADOPTION TEAM 1,20,OYSTER TOP UP
30/08/2016,TESCO STORE 2253,OTHER PUBLIC HEALTH ADMINISTRATION EXPE,200,JAMIE'S ITALIAN RESTAURANT VOUCHERS (PURCHASED IN THE FORM OF GIFT CARDS FROM TESCO) AWARDED TO THE WINNER OF THE SUGAR SMART SURVEY PRIZE DRAW (SURVEY CONDUCTED BY THE PUBLIC HEALTH TEAM).
30/08/2016,WWW.TOTALWORKWEAR.CO.U,HEAD OF ASSET STRATEGY AND DEVELOPMENT,121.74,2 X HIGH VIZ 5 IN1 JACKETT. (XLARGE)
30/08/2016,OYSTER RENEW WEB,LEAVING CARE SUPPORT SERVICES,20,ACTIVATE OYSTER CARD
30/08/2016,ARGOS RETAIL GROUP,FSI - GOLDSMITHS TEAM (AREA 1) - SECTIO,99.99,COST OF BED FOR RGBT (FSW)
30/08/2016,GWR WEBSALES ECOM,QUALITY ASSURANCE,57,IRO TO STROUD GLOS
30/08/2016,GWR WEBSALES ECOM,FSI - GOLDSMITHS TEAM (AREA 1),79.3,GROVE PARK TO SEAFORD ON 31.8.16 FOR CONTACT FOR 1 ADULT AND 3 CHILDREN (16.45%)
30/08/2016,SCREWFIX DIRECT,HANDYPERSON SCHEME,55,HP EQUIPMENT
30/08/2016,GWR WEBSALES ECOM,ADOPTION TEAM 1,18.5,TO MAIDSTONE STATIONS
30/08/2016,CARPETRIGHT PLC 324,HANDYPERSON SCHEME,50.32,MATERIALS
30/08/2016,SELCO TRADE CENTRE,HANDYPERSON SCHEME,57.12,MATERIALS
30/08/2016,LEWISHAM COUNCIL,QUALITY ASSURANCE,69.29,PAYMENT ON BEHALF OF GK
30/08/2016,GWR WEBSALES ECOM,LEAVING CARE LAC OTHER CARE,154.8,RTN FOR 1 ADULT AND 2 CHILDREN FOR CONTACT ON 3.9.16 FROM SEVEN KINGS TO TAUNTON (32.11%)
30/08/2016,GWR WEBSALES ECOM,QUALITY ASSURANCE,18.2,RTN FROM LONDON TO LENHAM ON 7.9.16  (3.78%)
30/08/2016,GWR WEBSALES ECOM,LEAVING CARE SUPPORT SERVICES,206.4,RTN FROM LONDON TO PRUDHOE ON 8.9.16  (42.81%)
30/08/2016,GWR WEBSALES ECOM,LEAVING CARE SUPPORT SERVICES,23.4,RTN FROM LONDON TO SITTINGBOURNE  ON 6.9.16 (4.85%)
30/08/2016,VIRGINTRAINS.CO.UK,COMMUNITY SERVICES DMT,32,STANDARD CLASS TRAIN TRAVEL FROM LONDON EUSTON TO BIRMINGHAM NEW STREET FOR THE EXECUTIVE DIRECTOR FOR COMMUNITY SERVICES TO ATTEND THE ADASS EXECUTIVE MEETING ON 8 SEPTEMBER 2016
30/08/2016,AO RETAIL LIMITED,LEAVING CARE LAC OTHER CARE,242.99,SUHG FOR MM
31/08/2016,AMAZON UK MARKETPLACE,HEAD OF ASSET STRATEGY AND DEVELOPMENT,12.28,10X FIRST AID BADGES.
31/08/2016,AMAZON UK MARKETPLACE,YOUTH OFFENDING SERVICE,30.74,2X H&S AT WORK POSTERS
31/08/2016,AMAZON UK MARKETPLACE,HEAD OF ASSET STRATEGY AND DEVELOPMENT,10.74,6X NKS RADAR KEYS.
31/08/2016,AMAZON UK MARKETPLACE,PRIVATE SECTOR RENEWAL: ENVIRON. HEALTH,7.9,EHO STUFF
31/08/2016,PAYPAL  FACEBOOK,COMMUNICATIONS & MARKETING,181.23,FACEBOOK ADS COST
31/08/2016,GWR WEBSALES ECOM,LEAVING CARE SUPPORT SERVICES,32.3,TO BROADSTAIRS STAT VISIT
31/08/2016,POST OFFICE COUNTER,FLEET & VEHICLE MAINT:FLEET,222.5,FLEET VEHICLE ROAD FUND LICENCE
31/08/2016,NYCOMM LTD,ENVIRONMENT ADMINISTRATION,103.98,HEADSET FOR GARDEN WASTE TEAM
31/08/2016,GWR WEBSALES ECOM,ADOPTION TEAM 1,17.3,SW TO EDENBRIDGE
31/08/2016,WICKES   083,HANDYPERSON SCHEME,-8,MATERIALS
31/08/2016,WICKES   083,HANDYPERSON SCHEME,38.96,MATERIALS
31/08/2016,LONDON & SOUTH EAS,LEAVING CARE SUPPORT SERVICES,46,TO IPSWICH 
31/08/2016,CAMPUS LIVING,LAC ADDITIONAL SERVICES,630,TO PAYMENT OF ACCOMMODATION FEES AT BOURNEMOUTH UNIVERSITY 2016-17
31/08/2016,OYSTER BUS AUTOTOP,LEAVING CARE SUPPORT SERVICES,20,OYSTER TOP UP
31/08/2016,LONDON & SOUTH EAS,LEAVING CARE SUPPORT SERVICES,50,OYSTER TOP UP
31/08/2016,THUS PLC,LT: MAIN THEATRE PROGRAMME,41.62,PAYMENT FOR INTERNET
31/08/2016,GWR WEBSALES ECOM,LEAVING CARE LAC OTHER CARE,46,RTN FROM ELTHAM TO IPWICH FOR CONATCT ON 2.9.16 (39.42%)
31/08/2016,GWR WEBSALES ECOM,REFERRAL AND ASSESSMENT TEAM 1,51.4,RTN FROM LEWISHAM TO MILTON KEYNES CENTRAL ON 1.9.16  (R&A)
31/08/2016,GWR WEBSALES ECOM,DISABLED CHILDRENS SERVICE TEAM 2,11.1,RTN FROM LEWISHAM TO NORBITON ON 1.9.16 (CWCN)
31/08/2016,GWR WEBSALES ECOM,LEAVING CARE LAC OTHER CARE,13.4,RTN FROM LEWISHAM TO ROCHESTER ON 3.9.16 FOR CONTACT (11.48%)
31/08/2016,GWR WEBSALES ECOM,LEAVING CARE SUPPORT SERVICES,32.3,RTN FROM LONDON TO BROADSTAIRS  AND BUS PLUS  ON 2.9.16 (27.68%)
31/08/2016,GWR WEBSALES ECOM,LEAVING CARE SUPPORT SERVICES,25,RTN FROM LONDON TO LENHAM ON 7.9.16 FOR DUTY (21.42%)
31/08/2016,BRUNEL UNIVERSITY,LAC ADDITIONAL SERVICES,350,BRUNEL UNIVERSITY ACCOMMODATION FEES AUTUMN 2016
31/08/2016,OYSTER AUTOTOPUP,ADULT SERVICES BUSINESS SUPPORT,20,STAFF TRAVEL
31/08/2016,TESCO STORE 2253,PRACTICAL LEARNING,7.53,SUBSISTENCE FOR EVENT
31/08/2016,ARGOS RETAIL GROUP,LEAVING CARE LAC OTHER CARE,43.94,SUHG FOR PM
01/09/2016,AMAZON UK MARKETPLACE,FLEET & VEHICLE MAINT:FLEET,46.51,COFFEE FOR FLEET
01/09/2016,AMAZON UK RETAIL AMAZO,PRIVATE SECTOR RENEWAL: ENVIRON. HEALTH,82.55,EHO STUFF
01/09/2016,ALLSTAR BUSINESS SOLUT,FLEET & VEHICLE MAINT:FLEET,135.37,FLEET FUEL CARDS
01/09/2016,AMAZON UK MARKETPLACE,HEAD OF ASSET STRATEGY AND DEVELOPMENT,89.82,H&S :  18X HIGH VIZ FIRST AIDER SAFETY VESTS.
01/09/2016,AMAZON UK MARKETPLACE,FLEET & VEHICLE MAINT:FLEET,15.99,INSTANT COFFEE FOR FLEET
01/09/2016,GWR WEBSALES ECOM,QUALITY ASSURANCE,74.7,"IRO TO ATTEND LAC PLACEMENT MEETING - LONDON PADDINGTON TO TAUNTON RETURN 02.09.2016, - IRO (QA)"
01/09/2016,GWR WEBSALES ECOM,QUALITY ASSURANCE,13.9,"IRO TO ATTEND LAC REVIEW - CANONBURY TO BENFLEET RETURN 06.09.2016,  - IRO (QA)"
01/09/2016,GWR WEBSALES ECOM,ADOPTION TEAM 1,30.5,TO EDENBRIDGE - 2 TICKETS - TO SEE ADOPTERS
01/09/2016,VIRGINTRAINS.CO.UK,DISABLED CHILDRENS SERVICE TEAM 1,13.7,SURBITON CWD CASE
01/09/2016,HOMEGUARD LOCK SVR,CREMATORIA ADMIN,182.04,"LOCKS, CHAINS AND BRACKETS FOR NVF AND STILLBORN LOCK DOWN COVERS.KEY CUTTING FOR LADYWELL CEMETERY MAIN GATE."
01/09/2016,OYSTER AUTOTOPUP,AWLD SPECIALIST SW TEAM,20,OYSTER AUTOTOPUP
01/09/2016,OYSTER BUS AUTOTOP,AWLD SPECIALIST SW TEAM,20,OYSTER BUS AUTOTOPUP
01/09/2016,CATFORD STATION SST,PLANNING DEVELOPMENT CONTROL,50,OYSTER CARD TOP UP FOR SOUTH 7
01/09/2016,LONDON & SOUTH EAS,LEAVING CARE SUPPORT SERVICES,50,OYSTER TOP UP
01/09/2016,LEWISHAM PKGFINE,FLEET & VEHICLE MAINT:FLEET,3,PARKING COST FOR LAURENCE HOUSE MEETING
01/09/2016,AMAZON UK MARKETPLACE,HEAD OF ASSET STRATEGY AND DEVELOPMENT,31,PPE: LADIES SAFETY SHOES - SIZE 6
01/09/2016,GWR WEBSALES ECOM,LEAVING CARE SUPPORT SERVICES,93.4,STAT VISIT TO TAUNTON
01/09/2016,TRAINLINE.COM LTD,LEAVING CARE SUPPORT SERVICES,100.4,SW TO SEE VICTORY OLUTAYESHE IN TAUNTON IN SEPTEMBER
01/09/2016,OYSTER BUS AUTOTOP,ADULT SERVICES BUSINESS SUPPORT,20,STAFF TRAVEL
01/09/2016,OYSTER BUS AUTOTOP,ADULT SERVICES BUSINESS SUPPORT,20,STAFF TRAVEL
01/09/2016,GWR WEBSALES ECOM,LEAVING CARE LAC OTHER CARE,196.8,FAMILY CONTACT 2 ADULTS TRAVELLING AT 98.40 IN SEPTEMBER 2016
01/09/2016,TESCO STORE 2253,PRACTICAL LEARNING,5.95,SUBSISTENCE FOR EVENTS
01/09/2016,GWR WEBSALES ECOM,FSI - GOLDSMITHS TEAM (AREA 1),14.5,"SW TO ATTEND TRANSFER OUT CONFERENCE - LONDON TERMINALS TO HARLOW TOWN RETURN 09.09.2016, - SW"
01/09/2016,GWR WEBSALES ECOM,LEAVING CARE SUPPORT SERVICES,34.4,TO MARGATE
01/09/2016,OYSTER AUTOTOPUP,FSI - PENDRAGON TEAM (AREA 3),20,TM TRAVEL TO VISITS AND COURT.  
01/09/2016,TRAINLINE.COM LTD,LEAVING CARE LAC OTHER CARE,100.4,CONTACT NEWCROSS TO TAUNTON
